{"text_format":"3","workbook":"xlsx","n_sheets":1,"sheets":["Calendrier annuel"],"not_rendered":{"images":4,"defined_names":14},"read":"whole","date_system":"1900"}

{"sheet":"Calendrier annuel","index":0,"n_rows":55,"n_cols":21,"rows_kept":55,"merged":[[0,2,0,5]]}
[null,null,{"$f":"YEAR(TODAY())","v":2019},{"$nulls":17},"DATES IMPORTANTES"]
[]
[null,null,"JANVIER",{"$nulls":7},"FÉVRIER",{"$nulls":9},"1ER JANVIER"]
[null,null,"L","M","M","J","V","S","D",null,"L","M","M","J","V","S","D",{"$nulls":3},"NOUVEL AN"]
[null,null,{"$f":"IF(DAY(JanSun1)=1,\"\",IF(AND(YEAR(JanSun1+1)=AnnéeCalendrier,MONTH(JanSun1+1)=1),JanSun1+1,\"\"))","v":""},{"$f":"IF(DAY(JanSun1)=1,\"\",IF(AND(YEAR(JanSun1+2)=AnnéeCalendrier,MONTH(JanSun1+2)=1),JanSun1+2,\"\"))","v":"2019-01-01"},{"$f":"IF(DAY(JanSun1)=1,\"\",IF(AND(YEAR(JanSun1+3)=AnnéeCalendrier,MONTH(JanSun1+3)=1),JanSun1+3,\"\"))","v":"2019-01-02"},{"$f":"IF(DAY(JanSun1)=1,\"\",IF(AND(YEAR(JanSun1+4)=AnnéeCalendrier,MONTH(JanSun1+4)=1),JanSun1+4,\"\"))","v":"2019-01-03"},{"$f":"IF(DAY(JanSun1)=1,\"\",IF(AND(YEAR(JanSun1+5)=AnnéeCalendrier,MONTH(JanSun1+5)=1),JanSun1+5,\"\"))","v":"2019-01-04"},{"$f":"IF(DAY(JanSun1)=1,\"\",IF(AND(YEAR(JanSun1+6)=AnnéeCalendrier,MONTH(JanSun1+6)=1),JanSun1+6,\"\"))","v":"2019-01-05"},{"$f":"IF(DAY(JanSun1)=1,IF(AND(YEAR(JanSun1)=AnnéeCalendrier,MONTH(JanSun1)=1),JanSun1,\"\"),IF(AND(YEAR(JanSun1+7)=AnnéeCalendrier,MONTH(JanSun1+7)=1),JanSun1+7,\"\"))","v":"2019-01-06"},null,{"$f":"IF(DAY(FebSun1)=1,\"\",IF(AND(YEAR(FebSun1+1)=AnnéeCalendrier,MONTH(FebSun1+1)=2),FebSun1+1,\"\"))","v":""},{"$f":"IF(DAY(FebSun1)=1,\"\",IF(AND(YEAR(FebSun1+2)=AnnéeCalendrier,MONTH(FebSun1+2)=2),FebSun1+2,\"\"))","v":""},{"$f":"IF(DAY(FebSun1)=1,\"\",IF(AND(YEAR(FebSun1+3)=AnnéeCalendrier,MONTH(FebSun1+3)=2),FebSun1+3,\"\"))","v":""},{"$f":"IF(DAY(FebSun1)=1,\"\",IF(AND(YEAR(FebSun1+4)=AnnéeCalendrier,MONTH(FebSun1+4)=2),FebSun1+4,\"\"))","v":""},{"$f":"IF(DAY(FebSun1)=1,\"\",IF(AND(YEAR(FebSun1+5)=AnnéeCalendrier,MONTH(FebSun1+5)=2),FebSun1+5,\"\"))","v":"2019-02-01"},{"$f":"IF(DAY(FebSun1)=1,\"\",IF(AND(YEAR(FebSun1+6)=AnnéeCalendrier,MONTH(FebSun1+6)=2),FebSun1+6,\"\"))","v":"2019-02-02"},{"$f":"IF(DAY(FebSun1)=1,IF(AND(YEAR(FebSun1)=AnnéeCalendrier,MONTH(FebSun1)=2),FebSun1,\"\"),IF(AND(YEAR(FebSun1+7)=AnnéeCalendrier,MONTH(FebSun1+7)=2),FebSun1+7,\"\"))","v":"2019-02-03"}]
[null,null,{"$f":"IF(DAY(JanSun1)=1,IF(AND(YEAR(JanSun1+1)=AnnéeCalendrier,MONTH(JanSun1+1)=1),JanSun1+1,\"\"),IF(AND(YEAR(JanSun1+8)=AnnéeCalendrier,MONTH(JanSun1+8)=1),JanSun1+8,\"\"))","v":"2019-01-07"},{"$f":"IF(DAY(JanSun1)=1,IF(AND(YEAR(JanSun1+2)=AnnéeCalendrier,MONTH(JanSun1+2)=1),JanSun1+2,\"\"),IF(AND(YEAR(JanSun1+9)=AnnéeCalendrier,MONTH(JanSun1+9)=1),JanSun1+9,\"\"))","v":"2019-01-08"},{"$f":"IF(DAY(JanSun1)=1,IF(AND(YEAR(JanSun1+3)=AnnéeCalendrier,MONTH(JanSun1+3)=1),JanSun1+3,\"\"),IF(AND(YEAR(JanSun1+10)=AnnéeCalendrier,MONTH(JanSun1+10)=1),JanSun1+10,\"\"))","v":"2019-01-09"},{"$f":"IF(DAY(JanSun1)=1,IF(AND(YEAR(JanSun1+4)=AnnéeCalendrier,MONTH(JanSun1+4)=1),JanSun1+4,\"\"),IF(AND(YEAR(JanSun1+11)=AnnéeCalendrier,MONTH(JanSun1+11)=1),JanSun1+11,\"\"))","v":"2019-01-10"},{"$f":"IF(DAY(JanSun1)=1,IF(AND(YEAR(JanSun1+5)=AnnéeCalendrier,MONTH(JanSun1+5)=1),JanSun1+5,\"\"),IF(AND(YEAR(JanSun1+12)=AnnéeCalendrier,MONTH(JanSun1+12)=1),JanSun1+12,\"\"))","v":"2019-01-11"},{"$f":"IF(DAY(JanSun1)=1,IF(AND(YEAR(JanSun1+6)=AnnéeCalendrier,MONTH(JanSun1+6)=1),JanSun1+6,\"\"),IF(AND(YEAR(JanSun1+13)=AnnéeCalendrier,MONTH(JanSun1+13)=1),JanSun1+13,\"\"))","v":"2019-01-12"},{"$f":"IF(DAY(JanSun1)=1,IF(AND(YEAR(JanSun1+7)=AnnéeCalendrier,MONTH(JanSun1+7)=1),JanSun1+7,\"\"),IF(AND(YEAR(JanSun1+14)=AnnéeCalendrier,MONTH(JanSun1+14)=1),JanSun1+14,\"\"))","v":"2019-01-13"},null,{"$f":"IF(DAY(FebSun1)=1,IF(AND(YEAR(FebSun1+1)=AnnéeCalendrier,MONTH(FebSun1+1)=2),FebSun1+1,\"\"),IF(AND(YEAR(FebSun1+8)=AnnéeCalendrier,MONTH(FebSun1+8)=2),FebSun1+8,\"\"))","v":"2019-02-04"},{"$f":"IF(DAY(FebSun1)=1,IF(AND(YEAR(FebSun1+2)=AnnéeCalendrier,MONTH(FebSun1+2)=2),FebSun1+2,\"\"),IF(AND(YEAR(FebSun1+9)=AnnéeCalendrier,MONTH(FebSun1+9)=2),FebSun1+9,\"\"))","v":"2019-02-05"},{"$f":"IF(DAY(FebSun1)=1,IF(AND(YEAR(FebSun1+3)=AnnéeCalendrier,MONTH(FebSun1+3)=2),FebSun1+3,\"\"),IF(AND(YEAR(FebSun1+10)=AnnéeCalendrier,MONTH(FebSun1+10)=2),FebSun1+10,\"\"))","v":"2019-02-06"},{"$f":"IF(DAY(FebSun1)=1,IF(AND(YEAR(FebSun1+4)=AnnéeCalendrier,MONTH(FebSun1+4)=2),FebSun1+4,\"\"),IF(AND(YEAR(FebSun1+11)=AnnéeCalendrier,MONTH(FebSun1+11)=2),FebSun1+11,\"\"))","v":"2019-02-07"},{"$f":"IF(DAY(FebSun1)=1,IF(AND(YEAR(FebSun1+5)=AnnéeCalendrier,MONTH(FebSun1+5)=2),FebSun1+5,\"\"),IF(AND(YEAR(FebSun1+12)=AnnéeCalendrier,MONTH(FebSun1+12)=2),FebSun1+12,\"\"))","v":"2019-02-08"},{"$f":"IF(DAY(FebSun1)=1,IF(AND(YEAR(FebSun1+6)=AnnéeCalendrier,MONTH(FebSun1+6)=2),FebSun1+6,\"\"),IF(AND(YEAR(FebSun1+13)=AnnéeCalendrier,MONTH(FebSun1+13)=2),FebSun1+13,\"\"))","v":"2019-02-09"},{"$f":"IF(DAY(FebSun1)=1,IF(AND(YEAR(FebSun1+7)=AnnéeCalendrier,MONTH(FebSun1+7)=2),FebSun1+7,\"\"),IF(AND(YEAR(FebSun1+14)=AnnéeCalendrier,MONTH(FebSun1+14)=2),FebSun1+14,\"\"))","v":"2019-02-10"},{"$nulls":3},"14 FÉVRIER"]
[null,null,{"$f":"IF(DAY(JanSun1)=1,IF(AND(YEAR(JanSun1+8)=AnnéeCalendrier,MONTH(JanSun1+8)=1),JanSun1+8,\"\"),IF(AND(YEAR(JanSun1+15)=AnnéeCalendrier,MONTH(JanSun1+15)=1),JanSun1+15,\"\"))","v":"2019-01-14"},{"$f":"IF(DAY(JanSun1)=1,IF(AND(YEAR(JanSun1+9)=AnnéeCalendrier,MONTH(JanSun1+9)=1),JanSun1+9,\"\"),IF(AND(YEAR(JanSun1+16)=AnnéeCalendrier,MONTH(JanSun1+16)=1),JanSun1+16,\"\"))","v":"2019-01-15"},{"$f":"IF(DAY(JanSun1)=1,IF(AND(YEAR(JanSun1+10)=AnnéeCalendrier,MONTH(JanSun1+10)=1),JanSun1+10,\"\"),IF(AND(YEAR(JanSun1+17)=AnnéeCalendrier,MONTH(JanSun1+17)=1),JanSun1+17,\"\"))","v":"2019-01-16"},{"$f":"IF(DAY(JanSun1)=1,IF(AND(YEAR(JanSun1+11)=AnnéeCalendrier,MONTH(JanSun1+11)=1),JanSun1+11,\"\"),IF(AND(YEAR(JanSun1+18)=AnnéeCalendrier,MONTH(JanSun1+18)=1),JanSun1+18,\"\"))","v":"2019-01-17"},{"$f":"IF(DAY(JanSun1)=1,IF(AND(YEAR(JanSun1+12)=AnnéeCalendrier,MONTH(JanSun1+12)=1),JanSun1+12,\"\"),IF(AND(YEAR(JanSun1+19)=AnnéeCalendrier,MONTH(JanSun1+19)=1),JanSun1+19,\"\"))","v":"2019-01-18"},{"$f":"IF(DAY(JanSun1)=1,IF(AND(YEAR(JanSun1+13)=AnnéeCalendrier,MONTH(JanSun1+13)=1),JanSun1+13,\"\"),IF(AND(YEAR(JanSun1+20)=AnnéeCalendrier,MONTH(JanSun1+20)=1),JanSun1+20,\"\"))","v":"2019-01-19"},{"$f":"IF(DAY(JanSun1)=1,IF(AND(YEAR(JanSun1+14)=AnnéeCalendrier,MONTH(JanSun1+14)=1),JanSun1+14,\"\"),IF(AND(YEAR(JanSun1+21)=AnnéeCalendrier,MONTH(JanSun1+21)=1),JanSun1+21,\"\"))","v":"2019-01-20"},null,{"$f":"IF(DAY(FebSun1)=1,IF(AND(YEAR(FebSun1+8)=AnnéeCalendrier,MONTH(FebSun1+8)=2),FebSun1+8,\"\"),IF(AND(YEAR(FebSun1+15)=AnnéeCalendrier,MONTH(FebSun1+15)=2),FebSun1+15,\"\"))","v":"2019-02-11"},{"$f":"IF(DAY(FebSun1)=1,IF(AND(YEAR(FebSun1+9)=AnnéeCalendrier,MONTH(FebSun1+9)=2),FebSun1+9,\"\"),IF(AND(YEAR(FebSun1+16)=AnnéeCalendrier,MONTH(FebSun1+16)=2),FebSun1+16,\"\"))","v":"2019-02-12"},{"$f":"IF(DAY(FebSun1)=1,IF(AND(YEAR(FebSun1+10)=AnnéeCalendrier,MONTH(FebSun1+10)=2),FebSun1+10,\"\"),IF(AND(YEAR(FebSun1+17)=AnnéeCalendrier,MONTH(FebSun1+17)=2),FebSun1+17,\"\"))","v":"2019-02-13"},{"$f":"IF(DAY(FebSun1)=1,IF(AND(YEAR(FebSun1+11)=AnnéeCalendrier,MONTH(FebSun1+11)=2),FebSun1+11,\"\"),IF(AND(YEAR(FebSun1+18)=AnnéeCalendrier,MONTH(FebSun1+18)=2),FebSun1+18,\"\"))","v":"2019-02-14"},{"$f":"IF(DAY(FebSun1)=1,IF(AND(YEAR(FebSun1+12)=AnnéeCalendrier,MONTH(FebSun1+12)=2),FebSun1+12,\"\"),IF(AND(YEAR(FebSun1+19)=AnnéeCalendrier,MONTH(FebSun1+19)=2),FebSun1+19,\"\"))","v":"2019-02-15"},{"$f":"IF(DAY(FebSun1)=1,IF(AND(YEAR(FebSun1+13)=AnnéeCalendrier,MONTH(FebSun1+13)=2),FebSun1+13,\"\"),IF(AND(YEAR(FebSun1+20)=AnnéeCalendrier,MONTH(FebSun1+20)=2),FebSun1+20,\"\"))","v":"2019-02-16"},{"$f":"IF(DAY(FebSun1)=1,IF(AND(YEAR(FebSun1+14)=AnnéeCalendrier,MONTH(FebSun1+14)=2),FebSun1+14,\"\"),IF(AND(YEAR(FebSun1+21)=AnnéeCalendrier,MONTH(FebSun1+21)=2),FebSun1+21,\"\"))","v":"2019-02-17"},{"$nulls":3},"SAINT-VALENTIN"]
[null,null,{"$f":"IF(DAY(JanSun1)=1,IF(AND(YEAR(JanSun1+15)=AnnéeCalendrier,MONTH(JanSun1+15)=1),JanSun1+15,\"\"),IF(AND(YEAR(JanSun1+22)=AnnéeCalendrier,MONTH(JanSun1+22)=1),JanSun1+22,\"\"))","v":"2019-01-21"},{"$f":"IF(DAY(JanSun1)=1,IF(AND(YEAR(JanSun1+16)=AnnéeCalendrier,MONTH(JanSun1+16)=1),JanSun1+16,\"\"),IF(AND(YEAR(JanSun1+23)=AnnéeCalendrier,MONTH(JanSun1+23)=1),JanSun1+23,\"\"))","v":"2019-01-22"},{"$f":"IF(DAY(JanSun1)=1,IF(AND(YEAR(JanSun1+17)=AnnéeCalendrier,MONTH(JanSun1+17)=1),JanSun1+17,\"\"),IF(AND(YEAR(JanSun1+24)=AnnéeCalendrier,MONTH(JanSun1+24)=1),JanSun1+24,\"\"))","v":"2019-01-23"},{"$f":"IF(DAY(JanSun1)=1,IF(AND(YEAR(JanSun1+18)=AnnéeCalendrier,MONTH(JanSun1+18)=1),JanSun1+18,\"\"),IF(AND(YEAR(JanSun1+25)=AnnéeCalendrier,MONTH(JanSun1+25)=1),JanSun1+25,\"\"))","v":"2019-01-24"},{"$f":"IF(DAY(JanSun1)=1,IF(AND(YEAR(JanSun1+19)=AnnéeCalendrier,MONTH(JanSun1+19)=1),JanSun1+19,\"\"),IF(AND(YEAR(JanSun1+26)=AnnéeCalendrier,MONTH(JanSun1+26)=1),JanSun1+26,\"\"))","v":"2019-01-25"},{"$f":"IF(DAY(JanSun1)=1,IF(AND(YEAR(JanSun1+20)=AnnéeCalendrier,MONTH(JanSun1+20)=1),JanSun1+20,\"\"),IF(AND(YEAR(JanSun1+27)=AnnéeCalendrier,MONTH(JanSun1+27)=1),JanSun1+27,\"\"))","v":"2019-01-26"},{"$f":"IF(DAY(JanSun1)=1,IF(AND(YEAR(JanSun1+21)=AnnéeCalendrier,MONTH(JanSun1+21)=1),JanSun1+21,\"\"),IF(AND(YEAR(JanSun1+28)=AnnéeCalendrier,MONTH(JanSun1+28)=1),JanSun1+28,\"\"))","v":"2019-01-27"},null,{"$f":"IF(DAY(FebSun1)=1,IF(AND(YEAR(FebSun1+15)=AnnéeCalendrier,MONTH(FebSun1+15)=2),FebSun1+15,\"\"),IF(AND(YEAR(FebSun1+22)=AnnéeCalendrier,MONTH(FebSun1+22)=2),FebSun1+22,\"\"))","v":"2019-02-18"},{"$f":"IF(DAY(FebSun1)=1,IF(AND(YEAR(FebSun1+16)=AnnéeCalendrier,MONTH(FebSun1+16)=2),FebSun1+16,\"\"),IF(AND(YEAR(FebSun1+23)=AnnéeCalendrier,MONTH(FebSun1+23)=2),FebSun1+23,\"\"))","v":"2019-02-19"},{"$f":"IF(DAY(FebSun1)=1,IF(AND(YEAR(FebSun1+17)=AnnéeCalendrier,MONTH(FebSun1+17)=2),FebSun1+17,\"\"),IF(AND(YEAR(FebSun1+24)=AnnéeCalendrier,MONTH(FebSun1+24)=2),FebSun1+24,\"\"))","v":"2019-02-20"},{"$f":"IF(DAY(FebSun1)=1,IF(AND(YEAR(FebSun1+18)=AnnéeCalendrier,MONTH(FebSun1+18)=2),FebSun1+18,\"\"),IF(AND(YEAR(FebSun1+25)=AnnéeCalendrier,MONTH(FebSun1+25)=2),FebSun1+25,\"\"))","v":"2019-02-21"},{"$f":"IF(DAY(FebSun1)=1,IF(AND(YEAR(FebSun1+19)=AnnéeCalendrier,MONTH(FebSun1+19)=2),FebSun1+19,\"\"),IF(AND(YEAR(FebSun1+26)=AnnéeCalendrier,MONTH(FebSun1+26)=2),FebSun1+26,\"\"))","v":"2019-02-22"},{"$f":"IF(DAY(FebSun1)=1,IF(AND(YEAR(FebSun1+20)=AnnéeCalendrier,MONTH(FebSun1+20)=2),FebSun1+20,\"\"),IF(AND(YEAR(FebSun1+27)=AnnéeCalendrier,MONTH(FebSun1+27)=2),FebSun1+27,\"\"))","v":"2019-02-23"},{"$f":"IF(DAY(FebSun1)=1,IF(AND(YEAR(FebSun1+21)=AnnéeCalendrier,MONTH(FebSun1+21)=2),FebSun1+21,\"\"),IF(AND(YEAR(FebSun1+28)=AnnéeCalendrier,MONTH(FebSun1+28)=2),FebSun1+28,\"\"))","v":"2019-02-24"}]
[null,null,{"$f":"IF(DAY(JanSun1)=1,IF(AND(YEAR(JanSun1+22)=AnnéeCalendrier,MONTH(JanSun1+22)=1),JanSun1+22,\"\"),IF(AND(YEAR(JanSun1+29)=AnnéeCalendrier,MONTH(JanSun1+29)=1),JanSun1+29,\"\"))","v":"2019-01-28"},{"$f":"IF(DAY(JanSun1)=1,IF(AND(YEAR(JanSun1+23)=AnnéeCalendrier,MONTH(JanSun1+23)=1),JanSun1+23,\"\"),IF(AND(YEAR(JanSun1+30)=AnnéeCalendrier,MONTH(JanSun1+30)=1),JanSun1+30,\"\"))","v":"2019-01-29"},{"$f":"IF(DAY(JanSun1)=1,IF(AND(YEAR(JanSun1+24)=AnnéeCalendrier,MONTH(JanSun1+24)=1),JanSun1+24,\"\"),IF(AND(YEAR(JanSun1+31)=AnnéeCalendrier,MONTH(JanSun1+31)=1),JanSun1+31,\"\"))","v":"2019-01-30"},{"$f":"IF(DAY(JanSun1)=1,IF(AND(YEAR(JanSun1+25)=AnnéeCalendrier,MONTH(JanSun1+25)=1),JanSun1+25,\"\"),IF(AND(YEAR(JanSun1+32)=AnnéeCalendrier,MONTH(JanSun1+32)=1),JanSun1+32,\"\"))","v":"2019-01-31"},{"$f":"IF(DAY(JanSun1)=1,IF(AND(YEAR(JanSun1+26)=AnnéeCalendrier,MONTH(JanSun1+26)=1),JanSun1+26,\"\"),IF(AND(YEAR(JanSun1+33)=AnnéeCalendrier,MONTH(JanSun1+33)=1),JanSun1+33,\"\"))","v":""},{"$f":"IF(DAY(JanSun1)=1,IF(AND(YEAR(JanSun1+27)=AnnéeCalendrier,MONTH(JanSun1+27)=1),JanSun1+27,\"\"),IF(AND(YEAR(JanSun1+34)=AnnéeCalendrier,MONTH(JanSun1+34)=1),JanSun1+34,\"\"))","v":""},{"$f":"IF(DAY(JanSun1)=1,IF(AND(YEAR(JanSun1+28)=AnnéeCalendrier,MONTH(JanSun1+28)=1),JanSun1+28,\"\"),IF(AND(YEAR(JanSun1+35)=AnnéeCalendrier,MONTH(JanSun1+35)=1),JanSun1+35,\"\"))","v":""},null,{"$f":"IF(DAY(FebSun1)=1,IF(AND(YEAR(FebSun1+22)=AnnéeCalendrier,MONTH(FebSun1+22)=2),FebSun1+22,\"\"),IF(AND(YEAR(FebSun1+29)=AnnéeCalendrier,MONTH(FebSun1+29)=2),FebSun1+29,\"\"))","v":"2019-02-25"},{"$f":"IF(DAY(FebSun1)=1,IF(AND(YEAR(FebSun1+23)=AnnéeCalendrier,MONTH(FebSun1+23)=2),FebSun1+23,\"\"),IF(AND(YEAR(FebSun1+30)=AnnéeCalendrier,MONTH(FebSun1+30)=2),FebSun1+30,\"\"))","v":"2019-02-26"},{"$f":"IF(DAY(FebSun1)=1,IF(AND(YEAR(FebSun1+24)=AnnéeCalendrier,MONTH(FebSun1+24)=2),FebSun1+24,\"\"),IF(AND(YEAR(FebSun1+31)=AnnéeCalendrier,MONTH(FebSun1+31)=2),FebSun1+31,\"\"))","v":"2019-02-27"},{"$f":"IF(DAY(FebSun1)=1,IF(AND(YEAR(FebSun1+25)=AnnéeCalendrier,MONTH(FebSun1+25)=2),FebSun1+25,\"\"),IF(AND(YEAR(FebSun1+32)=AnnéeCalendrier,MONTH(FebSun1+32)=2),FebSun1+32,\"\"))","v":"2019-02-28"},{"$f":"IF(DAY(FebSun1)=1,IF(AND(YEAR(FebSun1+26)=AnnéeCalendrier,MONTH(FebSun1+26)=2),FebSun1+26,\"\"),IF(AND(YEAR(FebSun1+33)=AnnéeCalendrier,MONTH(FebSun1+33)=2),FebSun1+33,\"\"))","v":""},{"$f":"IF(DAY(FebSun1)=1,IF(AND(YEAR(FebSun1+27)=AnnéeCalendrier,MONTH(FebSun1+27)=2),FebSun1+27,\"\"),IF(AND(YEAR(FebSun1+34)=AnnéeCalendrier,MONTH(FebSun1+34)=2),FebSun1+34,\"\"))","v":""},{"$f":"IF(DAY(FebSun1)=1,IF(AND(YEAR(FebSun1+28)=AnnéeCalendrier,MONTH(FebSun1+28)=2),FebSun1+28,\"\"),IF(AND(YEAR(FebSun1+35)=AnnéeCalendrier,MONTH(FebSun1+35)=2),FebSun1+35,\"\"))","v":""},{"$nulls":3},"22 FÉVRIER"]
[null,null,{"$f":"IF(DAY(JanSun1)=1,IF(AND(YEAR(JanSun1+29)=AnnéeCalendrier,MONTH(JanSun1+29)=1),JanSun1+29,\"\"),IF(AND(YEAR(JanSun1+36)=AnnéeCalendrier,MONTH(JanSun1+36)=1),JanSun1+36,\"\"))","v":""},{"$f":"IF(DAY(JanSun1)=1,IF(AND(YEAR(JanSun1+30)=AnnéeCalendrier,MONTH(JanSun1+30)=1),JanSun1+30,\"\"),IF(AND(YEAR(JanSun1+37)=AnnéeCalendrier,MONTH(JanSun1+37)=1),JanSun1+37,\"\"))","v":""},{"$f":"IF(DAY(JanSun1)=1,IF(AND(YEAR(JanSun1+31)=AnnéeCalendrier,MONTH(JanSun1+31)=1),JanSun1+31,\"\"),IF(AND(YEAR(JanSun1+38)=AnnéeCalendrier,MONTH(JanSun1+38)=1),JanSun1+38,\"\"))","v":""},{"$f":"IF(DAY(JanSun1)=1,IF(AND(YEAR(JanSun1+32)=AnnéeCalendrier,MONTH(JanSun1+32)=1),JanSun1+32,\"\"),IF(AND(YEAR(JanSun1+39)=AnnéeCalendrier,MONTH(JanSun1+39)=1),JanSun1+39,\"\"))","v":""},{"$f":"IF(DAY(JanSun1)=1,IF(AND(YEAR(JanSun1+33)=AnnéeCalendrier,MONTH(JanSun1+33)=1),JanSun1+33,\"\"),IF(AND(YEAR(JanSun1+40)=AnnéeCalendrier,MONTH(JanSun1+40)=1),JanSun1+40,\"\"))","v":""},{"$f":"IF(DAY(JanSun1)=1,IF(AND(YEAR(JanSun1+34)=AnnéeCalendrier,MONTH(JanSun1+34)=1),JanSun1+34,\"\"),IF(AND(YEAR(JanSun1+41)=AnnéeCalendrier,MONTH(JanSun1+41)=1),JanSun1+41,\"\"))","v":""},{"$f":"IF(DAY(JanSun1)=1,IF(AND(YEAR(JanSun1+35)=AnnéeCalendrier,MONTH(JanSun1+35)=1),JanSun1+35,\"\"),IF(AND(YEAR(JanSun1+42)=AnnéeCalendrier,MONTH(JanSun1+42)=1),JanSun1+42,\"\"))","v":""},null,{"$f":"IF(DAY(FebSun1)=1,IF(AND(YEAR(FebSun1+29)=AnnéeCalendrier,MONTH(FebSun1+29)=2),FebSun1+29,\"\"),IF(AND(YEAR(FebSun1+36)=AnnéeCalendrier,MONTH(FebSun1+36)=2),FebSun1+36,\"\"))","v":""},{"$f":"IF(DAY(FebSun1)=1,IF(AND(YEAR(FebSun1+30)=AnnéeCalendrier,MONTH(FebSun1+30)=2),FebSun1+30,\"\"),IF(AND(YEAR(FebSun1+37)=AnnéeCalendrier,MONTH(FebSun1+37)=2),FebSun1+37,\"\"))","v":""},{"$f":"IF(DAY(FebSun1)=1,IF(AND(YEAR(FebSun1+31)=AnnéeCalendrier,MONTH(FebSun1+31)=2),FebSun1+31,\"\"),IF(AND(YEAR(FebSun1+38)=AnnéeCalendrier,MONTH(FebSun1+38)=2),FebSun1+38,\"\"))","v":""},{"$f":"IF(DAY(FebSun1)=1,IF(AND(YEAR(FebSun1+32)=AnnéeCalendrier,MONTH(FebSun1+32)=2),FebSun1+32,\"\"),IF(AND(YEAR(FebSun1+39)=AnnéeCalendrier,MONTH(FebSun1+39)=2),FebSun1+39,\"\"))","v":""},{"$f":"IF(DAY(FebSun1)=1,IF(AND(YEAR(FebSun1+33)=AnnéeCalendrier,MONTH(FebSun1+33)=2),FebSun1+33,\"\"),IF(AND(YEAR(FebSun1+40)=AnnéeCalendrier,MONTH(FebSun1+40)=2),FebSun1+40,\"\"))","v":""},{"$f":"IF(DAY(FebSun1)=1,IF(AND(YEAR(FebSun1+34)=AnnéeCalendrier,MONTH(FebSun1+34)=2),FebSun1+34,\"\"),IF(AND(YEAR(FebSun1+41)=AnnéeCalendrier,MONTH(FebSun1+41)=2),FebSun1+41,\"\"))","v":""},{"$f":"IF(DAY(FebSun1)=1,IF(AND(YEAR(FebSun1+35)=AnnéeCalendrier,MONTH(FebSun1+35)=2),FebSun1+35,\"\"),IF(AND(YEAR(FebSun1+42)=AnnéeCalendrier,MONTH(FebSun1+42)=2),FebSun1+42,\"\"))","v":""},{"$nulls":3},"JOURNÉE « PORTES OUVERTES »"]
[]
[null,null,"MARS",{"$nulls":7},"AVRIL"]
[null,null,"L","M","M","J","V","S","D",null,"L","M","M","J","V","S","D"]
[null,null,{"$f":"IF(DAY(MarSun1)=1,\"\",IF(AND(YEAR(MarSun1+1)=AnnéeCalendrier,MONTH(MarSun1+1)=3),MarSun1+1,\"\"))","v":""},{"$f":"IF(DAY(MarSun1)=1,\"\",IF(AND(YEAR(MarSun1+2)=AnnéeCalendrier,MONTH(MarSun1+2)=3),MarSun1+2,\"\"))","v":""},{"$f":"IF(DAY(MarSun1)=1,\"\",IF(AND(YEAR(MarSun1+3)=AnnéeCalendrier,MONTH(MarSun1+3)=3),MarSun1+3,\"\"))","v":""},{"$f":"IF(DAY(MarSun1)=1,\"\",IF(AND(YEAR(MarSun1+4)=AnnéeCalendrier,MONTH(MarSun1+4)=3),MarSun1+4,\"\"))","v":""},{"$f":"IF(DAY(MarSun1)=1,\"\",IF(AND(YEAR(MarSun1+5)=AnnéeCalendrier,MONTH(MarSun1+5)=3),MarSun1+5,\"\"))","v":"2019-03-01"},{"$f":"IF(DAY(MarSun1)=1,\"\",IF(AND(YEAR(MarSun1+6)=AnnéeCalendrier,MONTH(MarSun1+6)=3),MarSun1+6,\"\"))","v":"2019-03-02"},{"$f":"IF(DAY(MarSun1)=1,IF(AND(YEAR(MarSun1)=AnnéeCalendrier,MONTH(MarSun1)=3),MarSun1,\"\"),IF(AND(YEAR(MarSun1+7)=AnnéeCalendrier,MONTH(MarSun1+7)=3),MarSun1+7,\"\"))","v":"2019-03-03"},null,{"$f":"IF(DAY(DimAvr1)=1,\"\",IF(AND(YEAR(DimAvr1+1)=AnnéeCalendrier,MONTH(DimAvr1+1)=4),DimAvr1+1,\"\"))","v":"2019-04-01"},{"$f":"IF(DAY(DimAvr1)=1,\"\",IF(AND(YEAR(DimAvr1+2)=AnnéeCalendrier,MONTH(DimAvr1+2)=4),DimAvr1+2,\"\"))","v":"2019-04-02"},{"$f":"IF(DAY(DimAvr1)=1,\"\",IF(AND(YEAR(DimAvr1+3)=AnnéeCalendrier,MONTH(DimAvr1+3)=4),DimAvr1+3,\"\"))","v":"2019-04-03"},{"$f":"IF(DAY(DimAvr1)=1,\"\",IF(AND(YEAR(DimAvr1+4)=AnnéeCalendrier,MONTH(DimAvr1+4)=4),DimAvr1+4,\"\"))","v":"2019-04-04"},{"$f":"IF(DAY(DimAvr1)=1,\"\",IF(AND(YEAR(DimAvr1+5)=AnnéeCalendrier,MONTH(DimAvr1+5)=4),DimAvr1+5,\"\"))","v":"2019-04-05"},{"$f":"IF(DAY(DimAvr1)=1,\"\",IF(AND(YEAR(DimAvr1+6)=AnnéeCalendrier,MONTH(DimAvr1+6)=4),DimAvr1+6,\"\"))","v":"2019-04-06"},{"$f":"IF(DAY(DimAvr1)=1,IF(AND(YEAR(DimAvr1)=AnnéeCalendrier,MONTH(DimAvr1)=4),DimAvr1,\"\"),IF(AND(YEAR(DimAvr1+7)=AnnéeCalendrier,MONTH(DimAvr1+7)=4),DimAvr1+7,\"\"))","v":"2019-04-07"}]
[null,null,{"$f":"IF(DAY(MarSun1)=1,IF(AND(YEAR(MarSun1+1)=AnnéeCalendrier,MONTH(MarSun1+1)=3),MarSun1+1,\"\"),IF(AND(YEAR(MarSun1+8)=AnnéeCalendrier,MONTH(MarSun1+8)=3),MarSun1+8,\"\"))","v":"2019-03-04"},{"$f":"IF(DAY(MarSun1)=1,IF(AND(YEAR(MarSun1+2)=AnnéeCalendrier,MONTH(MarSun1+2)=3),MarSun1+2,\"\"),IF(AND(YEAR(MarSun1+9)=AnnéeCalendrier,MONTH(MarSun1+9)=3),MarSun1+9,\"\"))","v":"2019-03-05"},{"$f":"IF(DAY(MarSun1)=1,IF(AND(YEAR(MarSun1+3)=AnnéeCalendrier,MONTH(MarSun1+3)=3),MarSun1+3,\"\"),IF(AND(YEAR(MarSun1+10)=AnnéeCalendrier,MONTH(MarSun1+10)=3),MarSun1+10,\"\"))","v":"2019-03-06"},{"$f":"IF(DAY(MarSun1)=1,IF(AND(YEAR(MarSun1+4)=AnnéeCalendrier,MONTH(MarSun1+4)=3),MarSun1+4,\"\"),IF(AND(YEAR(MarSun1+11)=AnnéeCalendrier,MONTH(MarSun1+11)=3),MarSun1+11,\"\"))","v":"2019-03-07"},{"$f":"IF(DAY(MarSun1)=1,IF(AND(YEAR(MarSun1+5)=AnnéeCalendrier,MONTH(MarSun1+5)=3),MarSun1+5,\"\"),IF(AND(YEAR(MarSun1+12)=AnnéeCalendrier,MONTH(MarSun1+12)=3),MarSun1+12,\"\"))","v":"2019-03-08"},{"$f":"IF(DAY(MarSun1)=1,IF(AND(YEAR(MarSun1+6)=AnnéeCalendrier,MONTH(MarSun1+6)=3),MarSun1+6,\"\"),IF(AND(YEAR(MarSun1+13)=AnnéeCalendrier,MONTH(MarSun1+13)=3),MarSun1+13,\"\"))","v":"2019-03-09"},{"$f":"IF(DAY(MarSun1)=1,IF(AND(YEAR(MarSun1+7)=AnnéeCalendrier,MONTH(MarSun1+7)=3),MarSun1+7,\"\"),IF(AND(YEAR(MarSun1+14)=AnnéeCalendrier,MONTH(MarSun1+14)=3),MarSun1+14,\"\"))","v":"2019-03-10"},null,{"$f":"IF(DAY(DimAvr1)=1,IF(AND(YEAR(DimAvr1+1)=AnnéeCalendrier,MONTH(DimAvr1+1)=4),DimAvr1+1,\"\"),IF(AND(YEAR(DimAvr1+8)=AnnéeCalendrier,MONTH(DimAvr1+8)=4),DimAvr1+8,\"\"))","v":"2019-04-08"},{"$f":"IF(DAY(DimAvr1)=1,IF(AND(YEAR(DimAvr1+2)=AnnéeCalendrier,MONTH(DimAvr1+2)=4),DimAvr1+2,\"\"),IF(AND(YEAR(DimAvr1+9)=AnnéeCalendrier,MONTH(DimAvr1+9)=4),DimAvr1+9,\"\"))","v":"2019-04-09"},{"$f":"IF(DAY(DimAvr1)=1,IF(AND(YEAR(DimAvr1+3)=AnnéeCalendrier,MONTH(DimAvr1+3)=4),DimAvr1+3,\"\"),IF(AND(YEAR(DimAvr1+10)=AnnéeCalendrier,MONTH(DimAvr1+10)=4),DimAvr1+10,\"\"))","v":"2019-04-10"},{"$f":"IF(DAY(DimAvr1)=1,IF(AND(YEAR(DimAvr1+4)=AnnéeCalendrier,MONTH(DimAvr1+4)=4),DimAvr1+4,\"\"),IF(AND(YEAR(DimAvr1+11)=AnnéeCalendrier,MONTH(DimAvr1+11)=4),DimAvr1+11,\"\"))","v":"2019-04-11"},{"$f":"IF(DAY(DimAvr1)=1,IF(AND(YEAR(DimAvr1+5)=AnnéeCalendrier,MONTH(DimAvr1+5)=4),DimAvr1+5,\"\"),IF(AND(YEAR(DimAvr1+12)=AnnéeCalendrier,MONTH(DimAvr1+12)=4),DimAvr1+12,\"\"))","v":"2019-04-12"},{"$f":"IF(DAY(DimAvr1)=1,IF(AND(YEAR(DimAvr1+6)=AnnéeCalendrier,MONTH(DimAvr1+6)=4),DimAvr1+6,\"\"),IF(AND(YEAR(DimAvr1+13)=AnnéeCalendrier,MONTH(DimAvr1+13)=4),DimAvr1+13,\"\"))","v":"2019-04-13"},{"$f":"IF(DAY(DimAvr1)=1,IF(AND(YEAR(DimAvr1+7)=AnnéeCalendrier,MONTH(DimAvr1+7)=4),DimAvr1+7,\"\"),IF(AND(YEAR(DimAvr1+14)=AnnéeCalendrier,MONTH(DimAvr1+14)=4),DimAvr1+14,\"\"))","v":"2019-04-14"}]
[null,null,{"$f":"IF(DAY(MarSun1)=1,IF(AND(YEAR(MarSun1+8)=AnnéeCalendrier,MONTH(MarSun1+8)=3),MarSun1+8,\"\"),IF(AND(YEAR(MarSun1+15)=AnnéeCalendrier,MONTH(MarSun1+15)=3),MarSun1+15,\"\"))","v":"2019-03-11"},{"$f":"IF(DAY(MarSun1)=1,IF(AND(YEAR(MarSun1+9)=AnnéeCalendrier,MONTH(MarSun1+9)=3),MarSun1+9,\"\"),IF(AND(YEAR(MarSun1+16)=AnnéeCalendrier,MONTH(MarSun1+16)=3),MarSun1+16,\"\"))","v":"2019-03-12"},{"$f":"IF(DAY(MarSun1)=1,IF(AND(YEAR(MarSun1+10)=AnnéeCalendrier,MONTH(MarSun1+10)=3),MarSun1+10,\"\"),IF(AND(YEAR(MarSun1+17)=AnnéeCalendrier,MONTH(MarSun1+17)=3),MarSun1+17,\"\"))","v":"2019-03-13"},{"$f":"IF(DAY(MarSun1)=1,IF(AND(YEAR(MarSun1+11)=AnnéeCalendrier,MONTH(MarSun1+11)=3),MarSun1+11,\"\"),IF(AND(YEAR(MarSun1+18)=AnnéeCalendrier,MONTH(MarSun1+18)=3),MarSun1+18,\"\"))","v":"2019-03-14"},{"$f":"IF(DAY(MarSun1)=1,IF(AND(YEAR(MarSun1+12)=AnnéeCalendrier,MONTH(MarSun1+12)=3),MarSun1+12,\"\"),IF(AND(YEAR(MarSun1+19)=AnnéeCalendrier,MONTH(MarSun1+19)=3),MarSun1+19,\"\"))","v":"2019-03-15"},{"$f":"IF(DAY(MarSun1)=1,IF(AND(YEAR(MarSun1+13)=AnnéeCalendrier,MONTH(MarSun1+13)=3),MarSun1+13,\"\"),IF(AND(YEAR(MarSun1+20)=AnnéeCalendrier,MONTH(MarSun1+20)=3),MarSun1+20,\"\"))","v":"2019-03-16"},{"$f":"IF(DAY(MarSun1)=1,IF(AND(YEAR(MarSun1+14)=AnnéeCalendrier,MONTH(MarSun1+14)=3),MarSun1+14,\"\"),IF(AND(YEAR(MarSun1+21)=AnnéeCalendrier,MONTH(MarSun1+21)=3),MarSun1+21,\"\"))","v":"2019-03-17"},null,{"$f":"IF(DAY(DimAvr1)=1,IF(AND(YEAR(DimAvr1+8)=AnnéeCalendrier,MONTH(DimAvr1+8)=4),DimAvr1+8,\"\"),IF(AND(YEAR(DimAvr1+15)=AnnéeCalendrier,MONTH(DimAvr1+15)=4),DimAvr1+15,\"\"))","v":"2019-04-15"},{"$f":"IF(DAY(DimAvr1)=1,IF(AND(YEAR(DimAvr1+9)=AnnéeCalendrier,MONTH(DimAvr1+9)=4),DimAvr1+9,\"\"),IF(AND(YEAR(DimAvr1+16)=AnnéeCalendrier,MONTH(DimAvr1+16)=4),DimAvr1+16,\"\"))","v":"2019-04-16"},{"$f":"IF(DAY(DimAvr1)=1,IF(AND(YEAR(DimAvr1+10)=AnnéeCalendrier,MONTH(DimAvr1+10)=4),DimAvr1+10,\"\"),IF(AND(YEAR(DimAvr1+17)=AnnéeCalendrier,MONTH(DimAvr1+17)=4),DimAvr1+17,\"\"))","v":"2019-04-17"},{"$f":"IF(DAY(DimAvr1)=1,IF(AND(YEAR(DimAvr1+11)=AnnéeCalendrier,MONTH(DimAvr1+11)=4),DimAvr1+11,\"\"),IF(AND(YEAR(DimAvr1+18)=AnnéeCalendrier,MONTH(DimAvr1+18)=4),DimAvr1+18,\"\"))","v":"2019-04-18"},{"$f":"IF(DAY(DimAvr1)=1,IF(AND(YEAR(DimAvr1+12)=AnnéeCalendrier,MONTH(DimAvr1+12)=4),DimAvr1+12,\"\"),IF(AND(YEAR(DimAvr1+19)=AnnéeCalendrier,MONTH(DimAvr1+19)=4),DimAvr1+19,\"\"))","v":"2019-04-19"},{"$f":"IF(DAY(DimAvr1)=1,IF(AND(YEAR(DimAvr1+13)=AnnéeCalendrier,MONTH(DimAvr1+13)=4),DimAvr1+13,\"\"),IF(AND(YEAR(DimAvr1+20)=AnnéeCalendrier,MONTH(DimAvr1+20)=4),DimAvr1+20,\"\"))","v":"2019-04-20"},{"$f":"IF(DAY(DimAvr1)=1,IF(AND(YEAR(DimAvr1+14)=AnnéeCalendrier,MONTH(DimAvr1+14)=4),DimAvr1+14,\"\"),IF(AND(YEAR(DimAvr1+21)=AnnéeCalendrier,MONTH(DimAvr1+21)=4),DimAvr1+21,\"\"))","v":"2019-04-21"}]
[null,null,{"$f":"IF(DAY(MarSun1)=1,IF(AND(YEAR(MarSun1+15)=AnnéeCalendrier,MONTH(MarSun1+15)=3),MarSun1+15,\"\"),IF(AND(YEAR(MarSun1+22)=AnnéeCalendrier,MONTH(MarSun1+22)=3),MarSun1+22,\"\"))","v":"2019-03-18"},{"$f":"IF(DAY(MarSun1)=1,IF(AND(YEAR(MarSun1+16)=AnnéeCalendrier,MONTH(MarSun1+16)=3),MarSun1+16,\"\"),IF(AND(YEAR(MarSun1+23)=AnnéeCalendrier,MONTH(MarSun1+23)=3),MarSun1+23,\"\"))","v":"2019-03-19"},{"$f":"IF(DAY(MarSun1)=1,IF(AND(YEAR(MarSun1+17)=AnnéeCalendrier,MONTH(MarSun1+17)=3),MarSun1+17,\"\"),IF(AND(YEAR(MarSun1+24)=AnnéeCalendrier,MONTH(MarSun1+24)=3),MarSun1+24,\"\"))","v":"2019-03-20"},{"$f":"IF(DAY(MarSun1)=1,IF(AND(YEAR(MarSun1+18)=AnnéeCalendrier,MONTH(MarSun1+18)=3),MarSun1+18,\"\"),IF(AND(YEAR(MarSun1+25)=AnnéeCalendrier,MONTH(MarSun1+25)=3),MarSun1+25,\"\"))","v":"2019-03-21"},{"$f":"IF(DAY(MarSun1)=1,IF(AND(YEAR(MarSun1+19)=AnnéeCalendrier,MONTH(MarSun1+19)=3),MarSun1+19,\"\"),IF(AND(YEAR(MarSun1+26)=AnnéeCalendrier,MONTH(MarSun1+26)=3),MarSun1+26,\"\"))","v":"2019-03-22"},{"$f":"IF(DAY(MarSun1)=1,IF(AND(YEAR(MarSun1+20)=AnnéeCalendrier,MONTH(MarSun1+20)=3),MarSun1+20,\"\"),IF(AND(YEAR(MarSun1+27)=AnnéeCalendrier,MONTH(MarSun1+27)=3),MarSun1+27,\"\"))","v":"2019-03-23"},{"$f":"IF(DAY(MarSun1)=1,IF(AND(YEAR(MarSun1+21)=AnnéeCalendrier,MONTH(MarSun1+21)=3),MarSun1+21,\"\"),IF(AND(YEAR(MarSun1+28)=AnnéeCalendrier,MONTH(MarSun1+28)=3),MarSun1+28,\"\"))","v":"2019-03-24"},null,{"$f":"IF(DAY(DimAvr1)=1,IF(AND(YEAR(DimAvr1+15)=AnnéeCalendrier,MONTH(DimAvr1+15)=4),DimAvr1+15,\"\"),IF(AND(YEAR(DimAvr1+22)=AnnéeCalendrier,MONTH(DimAvr1+22)=4),DimAvr1+22,\"\"))","v":"2019-04-22"},{"$f":"IF(DAY(DimAvr1)=1,IF(AND(YEAR(DimAvr1+16)=AnnéeCalendrier,MONTH(DimAvr1+16)=4),DimAvr1+16,\"\"),IF(AND(YEAR(DimAvr1+23)=AnnéeCalendrier,MONTH(DimAvr1+23)=4),DimAvr1+23,\"\"))","v":"2019-04-23"},{"$f":"IF(DAY(DimAvr1)=1,IF(AND(YEAR(DimAvr1+17)=AnnéeCalendrier,MONTH(DimAvr1+17)=4),DimAvr1+17,\"\"),IF(AND(YEAR(DimAvr1+24)=AnnéeCalendrier,MONTH(DimAvr1+24)=4),DimAvr1+24,\"\"))","v":"2019-04-24"},{"$f":"IF(DAY(DimAvr1)=1,IF(AND(YEAR(DimAvr1+18)=AnnéeCalendrier,MONTH(DimAvr1+18)=4),DimAvr1+18,\"\"),IF(AND(YEAR(DimAvr1+25)=AnnéeCalendrier,MONTH(DimAvr1+25)=4),DimAvr1+25,\"\"))","v":"2019-04-25"},{"$f":"IF(DAY(DimAvr1)=1,IF(AND(YEAR(DimAvr1+19)=AnnéeCalendrier,MONTH(DimAvr1+19)=4),DimAvr1+19,\"\"),IF(AND(YEAR(DimAvr1+26)=AnnéeCalendrier,MONTH(DimAvr1+26)=4),DimAvr1+26,\"\"))","v":"2019-04-26"},{"$f":"IF(DAY(DimAvr1)=1,IF(AND(YEAR(DimAvr1+20)=AnnéeCalendrier,MONTH(DimAvr1+20)=4),DimAvr1+20,\"\"),IF(AND(YEAR(DimAvr1+27)=AnnéeCalendrier,MONTH(DimAvr1+27)=4),DimAvr1+27,\"\"))","v":"2019-04-27"},{"$f":"IF(DAY(DimAvr1)=1,IF(AND(YEAR(DimAvr1+21)=AnnéeCalendrier,MONTH(DimAvr1+21)=4),DimAvr1+21,\"\"),IF(AND(YEAR(DimAvr1+28)=AnnéeCalendrier,MONTH(DimAvr1+28)=4),DimAvr1+28,\"\"))","v":"2019-04-28"}]
[null,null,{"$f":"IF(DAY(MarSun1)=1,IF(AND(YEAR(MarSun1+22)=AnnéeCalendrier,MONTH(MarSun1+22)=3),MarSun1+22,\"\"),IF(AND(YEAR(MarSun1+29)=AnnéeCalendrier,MONTH(MarSun1+29)=3),MarSun1+29,\"\"))","v":"2019-03-25"},{"$f":"IF(DAY(MarSun1)=1,IF(AND(YEAR(MarSun1+23)=AnnéeCalendrier,MONTH(MarSun1+23)=3),MarSun1+23,\"\"),IF(AND(YEAR(MarSun1+30)=AnnéeCalendrier,MONTH(MarSun1+30)=3),MarSun1+30,\"\"))","v":"2019-03-26"},{"$f":"IF(DAY(MarSun1)=1,IF(AND(YEAR(MarSun1+24)=AnnéeCalendrier,MONTH(MarSun1+24)=3),MarSun1+24,\"\"),IF(AND(YEAR(MarSun1+31)=AnnéeCalendrier,MONTH(MarSun1+31)=3),MarSun1+31,\"\"))","v":"2019-03-27"},{"$f":"IF(DAY(MarSun1)=1,IF(AND(YEAR(MarSun1+25)=AnnéeCalendrier,MONTH(MarSun1+25)=3),MarSun1+25,\"\"),IF(AND(YEAR(MarSun1+32)=AnnéeCalendrier,MONTH(MarSun1+32)=3),MarSun1+32,\"\"))","v":"2019-03-28"},{"$f":"IF(DAY(MarSun1)=1,IF(AND(YEAR(MarSun1+26)=AnnéeCalendrier,MONTH(MarSun1+26)=3),MarSun1+26,\"\"),IF(AND(YEAR(MarSun1+33)=AnnéeCalendrier,MONTH(MarSun1+33)=3),MarSun1+33,\"\"))","v":"2019-03-29"},{"$f":"IF(DAY(MarSun1)=1,IF(AND(YEAR(MarSun1+27)=AnnéeCalendrier,MONTH(MarSun1+27)=3),MarSun1+27,\"\"),IF(AND(YEAR(MarSun1+34)=AnnéeCalendrier,MONTH(MarSun1+34)=3),MarSun1+34,\"\"))","v":"2019-03-30"},{"$f":"IF(DAY(MarSun1)=1,IF(AND(YEAR(MarSun1+28)=AnnéeCalendrier,MONTH(MarSun1+28)=3),MarSun1+28,\"\"),IF(AND(YEAR(MarSun1+35)=AnnéeCalendrier,MONTH(MarSun1+35)=3),MarSun1+35,\"\"))","v":"2019-03-31"},null,{"$f":"IF(DAY(DimAvr1)=1,IF(AND(YEAR(DimAvr1+22)=AnnéeCalendrier,MONTH(DimAvr1+22)=4),DimAvr1+22,\"\"),IF(AND(YEAR(DimAvr1+29)=AnnéeCalendrier,MONTH(DimAvr1+29)=4),DimAvr1+29,\"\"))","v":"2019-04-29"},{"$f":"IF(DAY(DimAvr1)=1,IF(AND(YEAR(DimAvr1+23)=AnnéeCalendrier,MONTH(DimAvr1+23)=4),DimAvr1+23,\"\"),IF(AND(YEAR(DimAvr1+30)=AnnéeCalendrier,MONTH(DimAvr1+30)=4),DimAvr1+30,\"\"))","v":"2019-04-30"},{"$f":"IF(DAY(DimAvr1)=1,IF(AND(YEAR(DimAvr1+24)=AnnéeCalendrier,MONTH(DimAvr1+24)=4),DimAvr1+24,\"\"),IF(AND(YEAR(DimAvr1+31)=AnnéeCalendrier,MONTH(DimAvr1+31)=4),DimAvr1+31,\"\"))","v":""},{"$f":"IF(DAY(DimAvr1)=1,IF(AND(YEAR(DimAvr1+25)=AnnéeCalendrier,MONTH(DimAvr1+25)=4),DimAvr1+25,\"\"),IF(AND(YEAR(DimAvr1+32)=AnnéeCalendrier,MONTH(DimAvr1+32)=4),DimAvr1+32,\"\"))","v":""},{"$f":"IF(DAY(DimAvr1)=1,IF(AND(YEAR(DimAvr1+26)=AnnéeCalendrier,MONTH(DimAvr1+26)=4),DimAvr1+26,\"\"),IF(AND(YEAR(DimAvr1+33)=AnnéeCalendrier,MONTH(DimAvr1+33)=4),DimAvr1+33,\"\"))","v":""},{"$f":"IF(DAY(DimAvr1)=1,IF(AND(YEAR(DimAvr1+27)=AnnéeCalendrier,MONTH(DimAvr1+27)=4),DimAvr1+27,\"\"),IF(AND(YEAR(DimAvr1+34)=AnnéeCalendrier,MONTH(DimAvr1+34)=4),DimAvr1+34,\"\"))","v":""},{"$f":"IF(DAY(DimAvr1)=1,IF(AND(YEAR(DimAvr1+28)=AnnéeCalendrier,MONTH(DimAvr1+28)=4),DimAvr1+28,\"\"),IF(AND(YEAR(DimAvr1+35)=AnnéeCalendrier,MONTH(DimAvr1+35)=4),DimAvr1+35,\"\"))","v":""}]
[null,null,{"$f":"IF(DAY(MarSun1)=1,IF(AND(YEAR(MarSun1+29)=AnnéeCalendrier,MONTH(MarSun1+29)=3),MarSun1+29,\"\"),IF(AND(YEAR(MarSun1+36)=AnnéeCalendrier,MONTH(MarSun1+36)=3),MarSun1+36,\"\"))","v":""},{"$f":"IF(DAY(MarSun1)=1,IF(AND(YEAR(MarSun1+30)=AnnéeCalendrier,MONTH(MarSun1+30)=3),MarSun1+30,\"\"),IF(AND(YEAR(MarSun1+37)=AnnéeCalendrier,MONTH(MarSun1+37)=3),MarSun1+37,\"\"))","v":""},{"$f":"IF(DAY(MarSun1)=1,IF(AND(YEAR(MarSun1+31)=AnnéeCalendrier,MONTH(MarSun1+31)=3),MarSun1+31,\"\"),IF(AND(YEAR(MarSun1+38)=AnnéeCalendrier,MONTH(MarSun1+38)=3),MarSun1+38,\"\"))","v":""},{"$f":"IF(DAY(MarSun1)=1,IF(AND(YEAR(MarSun1+32)=AnnéeCalendrier,MONTH(MarSun1+32)=3),MarSun1+32,\"\"),IF(AND(YEAR(MarSun1+39)=AnnéeCalendrier,MONTH(MarSun1+39)=3),MarSun1+39,\"\"))","v":""},{"$f":"IF(DAY(MarSun1)=1,IF(AND(YEAR(MarSun1+33)=AnnéeCalendrier,MONTH(MarSun1+33)=3),MarSun1+33,\"\"),IF(AND(YEAR(MarSun1+40)=AnnéeCalendrier,MONTH(MarSun1+40)=3),MarSun1+40,\"\"))","v":""},{"$f":"IF(DAY(MarSun1)=1,IF(AND(YEAR(MarSun1+34)=AnnéeCalendrier,MONTH(MarSun1+34)=3),MarSun1+34,\"\"),IF(AND(YEAR(MarSun1+41)=AnnéeCalendrier,MONTH(MarSun1+41)=3),MarSun1+41,\"\"))","v":""},{"$f":"IF(DAY(MarSun1)=1,IF(AND(YEAR(MarSun1+35)=AnnéeCalendrier,MONTH(MarSun1+35)=3),MarSun1+35,\"\"),IF(AND(YEAR(MarSun1+42)=AnnéeCalendrier,MONTH(MarSun1+42)=3),MarSun1+42,\"\"))","v":""},null,{"$f":"IF(DAY(DimAvr1)=1,IF(AND(YEAR(DimAvr1+29)=AnnéeCalendrier,MONTH(DimAvr1+29)=4),DimAvr1+29,\"\"),IF(AND(YEAR(DimAvr1+36)=AnnéeCalendrier,MONTH(DimAvr1+36)=4),DimAvr1+36,\"\"))","v":""},{"$f":"IF(DAY(DimAvr1)=1,IF(AND(YEAR(DimAvr1+30)=AnnéeCalendrier,MONTH(DimAvr1+30)=4),DimAvr1+30,\"\"),IF(AND(YEAR(DimAvr1+37)=AnnéeCalendrier,MONTH(DimAvr1+37)=4),DimAvr1+37,\"\"))","v":""},{"$f":"IF(DAY(DimAvr1)=1,IF(AND(YEAR(DimAvr1+31)=AnnéeCalendrier,MONTH(DimAvr1+31)=4),DimAvr1+31,\"\"),IF(AND(YEAR(DimAvr1+38)=AnnéeCalendrier,MONTH(DimAvr1+38)=4),DimAvr1+38,\"\"))","v":""},{"$f":"IF(DAY(DimAvr1)=1,IF(AND(YEAR(DimAvr1+32)=AnnéeCalendrier,MONTH(DimAvr1+32)=4),DimAvr1+32,\"\"),IF(AND(YEAR(DimAvr1+39)=AnnéeCalendrier,MONTH(DimAvr1+39)=4),DimAvr1+39,\"\"))","v":""},{"$f":"IF(DAY(DimAvr1)=1,IF(AND(YEAR(DimAvr1+33)=AnnéeCalendrier,MONTH(DimAvr1+33)=4),DimAvr1+33,\"\"),IF(AND(YEAR(DimAvr1+40)=AnnéeCalendrier,MONTH(DimAvr1+40)=4),DimAvr1+40,\"\"))","v":""},{"$f":"IF(DAY(DimAvr1)=1,IF(AND(YEAR(DimAvr1+34)=AnnéeCalendrier,MONTH(DimAvr1+34)=4),DimAvr1+34,\"\"),IF(AND(YEAR(DimAvr1+41)=AnnéeCalendrier,MONTH(DimAvr1+41)=4),DimAvr1+41,\"\"))","v":""},{"$f":"IF(DAY(DimAvr1)=1,IF(AND(YEAR(DimAvr1+35)=AnnéeCalendrier,MONTH(DimAvr1+35)=4),DimAvr1+35,\"\"),IF(AND(YEAR(DimAvr1+42)=AnnéeCalendrier,MONTH(DimAvr1+42)=4),DimAvr1+42,\"\"))","v":""}]
[]
[null,null,"MAI",{"$nulls":7},"JUIN"]
[null,null,"L","M","M","J","V","S","D",null,"L","M","M","J","V","S","D"]
[null,null,{"$f":"IF(DAY(MaySun1)=1,\"\",IF(AND(YEAR(MaySun1+1)=AnnéeCalendrier,MONTH(MaySun1+1)=5),MaySun1+1,\"\"))","v":""},{"$f":"IF(DAY(MaySun1)=1,\"\",IF(AND(YEAR(MaySun1+2)=AnnéeCalendrier,MONTH(MaySun1+2)=5),MaySun1+2,\"\"))","v":""},{"$f":"IF(DAY(MaySun1)=1,\"\",IF(AND(YEAR(MaySun1+3)=AnnéeCalendrier,MONTH(MaySun1+3)=5),MaySun1+3,\"\"))","v":"2019-05-01"},{"$f":"IF(DAY(MaySun1)=1,\"\",IF(AND(YEAR(MaySun1+4)=AnnéeCalendrier,MONTH(MaySun1+4)=5),MaySun1+4,\"\"))","v":"2019-05-02"},{"$f":"IF(DAY(MaySun1)=1,\"\",IF(AND(YEAR(MaySun1+5)=AnnéeCalendrier,MONTH(MaySun1+5)=5),MaySun1+5,\"\"))","v":"2019-05-03"},{"$f":"IF(DAY(MaySun1)=1,\"\",IF(AND(YEAR(MaySun1+6)=AnnéeCalendrier,MONTH(MaySun1+6)=5),MaySun1+6,\"\"))","v":"2019-05-04"},{"$f":"IF(DAY(MaySun1)=1,IF(AND(YEAR(MaySun1)=AnnéeCalendrier,MONTH(MaySun1)=5),MaySun1,\"\"),IF(AND(YEAR(MaySun1+7)=AnnéeCalendrier,MONTH(MaySun1+7)=5),MaySun1+7,\"\"))","v":"2019-05-05"},null,{"$f":"IF(DAY(JunSun1)=1,\"\",IF(AND(YEAR(JunSun1+1)=AnnéeCalendrier,MONTH(JunSun1+1)=6),JunSun1+1,\"\"))","v":""},{"$f":"IF(DAY(JunSun1)=1,\"\",IF(AND(YEAR(JunSun1+2)=AnnéeCalendrier,MONTH(JunSun1+2)=6),JunSun1+2,\"\"))","v":""},{"$f":"IF(DAY(JunSun1)=1,\"\",IF(AND(YEAR(JunSun1+3)=AnnéeCalendrier,MONTH(JunSun1+3)=6),JunSun1+3,\"\"))","v":""},{"$f":"IF(DAY(JunSun1)=1,\"\",IF(AND(YEAR(JunSun1+4)=AnnéeCalendrier,MONTH(JunSun1+4)=6),JunSun1+4,\"\"))","v":""},{"$f":"IF(DAY(JunSun1)=1,\"\",IF(AND(YEAR(JunSun1+5)=AnnéeCalendrier,MONTH(JunSun1+5)=6),JunSun1+5,\"\"))","v":""},{"$f":"IF(DAY(JunSun1)=1,\"\",IF(AND(YEAR(JunSun1+6)=AnnéeCalendrier,MONTH(JunSun1+6)=6),JunSun1+6,\"\"))","v":"2019-06-01"},{"$f":"IF(DAY(JunSun1)=1,IF(AND(YEAR(JunSun1)=AnnéeCalendrier,MONTH(JunSun1)=6),JunSun1,\"\"),IF(AND(YEAR(JunSun1+7)=AnnéeCalendrier,MONTH(JunSun1+7)=6),JunSun1+7,\"\"))","v":"2019-06-02"}]
[null,null,{"$f":"IF(DAY(MaySun1)=1,IF(AND(YEAR(MaySun1+1)=AnnéeCalendrier,MONTH(MaySun1+1)=5),MaySun1+1,\"\"),IF(AND(YEAR(MaySun1+8)=AnnéeCalendrier,MONTH(MaySun1+8)=5),MaySun1+8,\"\"))","v":"2019-05-06"},{"$f":"IF(DAY(MaySun1)=1,IF(AND(YEAR(MaySun1+2)=AnnéeCalendrier,MONTH(MaySun1+2)=5),MaySun1+2,\"\"),IF(AND(YEAR(MaySun1+9)=AnnéeCalendrier,MONTH(MaySun1+9)=5),MaySun1+9,\"\"))","v":"2019-05-07"},{"$f":"IF(DAY(MaySun1)=1,IF(AND(YEAR(MaySun1+3)=AnnéeCalendrier,MONTH(MaySun1+3)=5),MaySun1+3,\"\"),IF(AND(YEAR(MaySun1+10)=AnnéeCalendrier,MONTH(MaySun1+10)=5),MaySun1+10,\"\"))","v":"2019-05-08"},{"$f":"IF(DAY(MaySun1)=1,IF(AND(YEAR(MaySun1+4)=AnnéeCalendrier,MONTH(MaySun1+4)=5),MaySun1+4,\"\"),IF(AND(YEAR(MaySun1+11)=AnnéeCalendrier,MONTH(MaySun1+11)=5),MaySun1+11,\"\"))","v":"2019-05-09"},{"$f":"IF(DAY(MaySun1)=1,IF(AND(YEAR(MaySun1+5)=AnnéeCalendrier,MONTH(MaySun1+5)=5),MaySun1+5,\"\"),IF(AND(YEAR(MaySun1+12)=AnnéeCalendrier,MONTH(MaySun1+12)=5),MaySun1+12,\"\"))","v":"2019-05-10"},{"$f":"IF(DAY(MaySun1)=1,IF(AND(YEAR(MaySun1+6)=AnnéeCalendrier,MONTH(MaySun1+6)=5),MaySun1+6,\"\"),IF(AND(YEAR(MaySun1+13)=AnnéeCalendrier,MONTH(MaySun1+13)=5),MaySun1+13,\"\"))","v":"2019-05-11"},{"$f":"IF(DAY(MaySun1)=1,IF(AND(YEAR(MaySun1+7)=AnnéeCalendrier,MONTH(MaySun1+7)=5),MaySun1+7,\"\"),IF(AND(YEAR(MaySun1+14)=AnnéeCalendrier,MONTH(MaySun1+14)=5),MaySun1+14,\"\"))","v":"2019-05-12"},null,{"$f":"IF(DAY(JunSun1)=1,IF(AND(YEAR(JunSun1+1)=AnnéeCalendrier,MONTH(JunSun1+1)=6),JunSun1+1,\"\"),IF(AND(YEAR(JunSun1+8)=AnnéeCalendrier,MONTH(JunSun1+8)=6),JunSun1+8,\"\"))","v":"2019-06-03"},{"$f":"IF(DAY(JunSun1)=1,IF(AND(YEAR(JunSun1+2)=AnnéeCalendrier,MONTH(JunSun1+2)=6),JunSun1+2,\"\"),IF(AND(YEAR(JunSun1+9)=AnnéeCalendrier,MONTH(JunSun1+9)=6),JunSun1+9,\"\"))","v":"2019-06-04"},{"$f":"IF(DAY(JunSun1)=1,IF(AND(YEAR(JunSun1+3)=AnnéeCalendrier,MONTH(JunSun1+3)=6),JunSun1+3,\"\"),IF(AND(YEAR(JunSun1+10)=AnnéeCalendrier,MONTH(JunSun1+10)=6),JunSun1+10,\"\"))","v":"2019-06-05"},{"$f":"IF(DAY(JunSun1)=1,IF(AND(YEAR(JunSun1+4)=AnnéeCalendrier,MONTH(JunSun1+4)=6),JunSun1+4,\"\"),IF(AND(YEAR(JunSun1+11)=AnnéeCalendrier,MONTH(JunSun1+11)=6),JunSun1+11,\"\"))","v":"2019-06-06"},{"$f":"IF(DAY(JunSun1)=1,IF(AND(YEAR(JunSun1+5)=AnnéeCalendrier,MONTH(JunSun1+5)=6),JunSun1+5,\"\"),IF(AND(YEAR(JunSun1+12)=AnnéeCalendrier,MONTH(JunSun1+12)=6),JunSun1+12,\"\"))","v":"2019-06-07"},{"$f":"IF(DAY(JunSun1)=1,IF(AND(YEAR(JunSun1+6)=AnnéeCalendrier,MONTH(JunSun1+6)=6),JunSun1+6,\"\"),IF(AND(YEAR(JunSun1+13)=AnnéeCalendrier,MONTH(JunSun1+13)=6),JunSun1+13,\"\"))","v":"2019-06-08"},{"$f":"IF(DAY(JunSun1)=1,IF(AND(YEAR(JunSun1+7)=AnnéeCalendrier,MONTH(JunSun1+7)=6),JunSun1+7,\"\"),IF(AND(YEAR(JunSun1+14)=AnnéeCalendrier,MONTH(JunSun1+14)=6),JunSun1+14,\"\"))","v":"2019-06-09"}]
[null,null,{"$f":"IF(DAY(MaySun1)=1,IF(AND(YEAR(MaySun1+8)=AnnéeCalendrier,MONTH(MaySun1+8)=5),MaySun1+8,\"\"),IF(AND(YEAR(MaySun1+15)=AnnéeCalendrier,MONTH(MaySun1+15)=5),MaySun1+15,\"\"))","v":"2019-05-13"},{"$f":"IF(DAY(MaySun1)=1,IF(AND(YEAR(MaySun1+9)=AnnéeCalendrier,MONTH(MaySun1+9)=5),MaySun1+9,\"\"),IF(AND(YEAR(MaySun1+16)=AnnéeCalendrier,MONTH(MaySun1+16)=5),MaySun1+16,\"\"))","v":"2019-05-14"},{"$f":"IF(DAY(MaySun1)=1,IF(AND(YEAR(MaySun1+10)=AnnéeCalendrier,MONTH(MaySun1+10)=5),MaySun1+10,\"\"),IF(AND(YEAR(MaySun1+17)=AnnéeCalendrier,MONTH(MaySun1+17)=5),MaySun1+17,\"\"))","v":"2019-05-15"},{"$f":"IF(DAY(MaySun1)=1,IF(AND(YEAR(MaySun1+11)=AnnéeCalendrier,MONTH(MaySun1+11)=5),MaySun1+11,\"\"),IF(AND(YEAR(MaySun1+18)=AnnéeCalendrier,MONTH(MaySun1+18)=5),MaySun1+18,\"\"))","v":"2019-05-16"},{"$f":"IF(DAY(MaySun1)=1,IF(AND(YEAR(MaySun1+12)=AnnéeCalendrier,MONTH(MaySun1+12)=5),MaySun1+12,\"\"),IF(AND(YEAR(MaySun1+19)=AnnéeCalendrier,MONTH(MaySun1+19)=5),MaySun1+19,\"\"))","v":"2019-05-17"},{"$f":"IF(DAY(MaySun1)=1,IF(AND(YEAR(MaySun1+13)=AnnéeCalendrier,MONTH(MaySun1+13)=5),MaySun1+13,\"\"),IF(AND(YEAR(MaySun1+20)=AnnéeCalendrier,MONTH(MaySun1+20)=5),MaySun1+20,\"\"))","v":"2019-05-18"},{"$f":"IF(DAY(MaySun1)=1,IF(AND(YEAR(MaySun1+14)=AnnéeCalendrier,MONTH(MaySun1+14)=5),MaySun1+14,\"\"),IF(AND(YEAR(MaySun1+21)=AnnéeCalendrier,MONTH(MaySun1+21)=5),MaySun1+21,\"\"))","v":"2019-05-19"},null,{"$f":"IF(DAY(JunSun1)=1,IF(AND(YEAR(JunSun1+8)=AnnéeCalendrier,MONTH(JunSun1+8)=6),JunSun1+8,\"\"),IF(AND(YEAR(JunSun1+15)=AnnéeCalendrier,MONTH(JunSun1+15)=6),JunSun1+15,\"\"))","v":"2019-06-10"},{"$f":"IF(DAY(JunSun1)=1,IF(AND(YEAR(JunSun1+9)=AnnéeCalendrier,MONTH(JunSun1+9)=6),JunSun1+9,\"\"),IF(AND(YEAR(JunSun1+16)=AnnéeCalendrier,MONTH(JunSun1+16)=6),JunSun1+16,\"\"))","v":"2019-06-11"},{"$f":"IF(DAY(JunSun1)=1,IF(AND(YEAR(JunSun1+10)=AnnéeCalendrier,MONTH(JunSun1+10)=6),JunSun1+10,\"\"),IF(AND(YEAR(JunSun1+17)=AnnéeCalendrier,MONTH(JunSun1+17)=6),JunSun1+17,\"\"))","v":"2019-06-12"},{"$f":"IF(DAY(JunSun1)=1,IF(AND(YEAR(JunSun1+11)=AnnéeCalendrier,MONTH(JunSun1+11)=6),JunSun1+11,\"\"),IF(AND(YEAR(JunSun1+18)=AnnéeCalendrier,MONTH(JunSun1+18)=6),JunSun1+18,\"\"))","v":"2019-06-13"},{"$f":"IF(DAY(JunSun1)=1,IF(AND(YEAR(JunSun1+12)=AnnéeCalendrier,MONTH(JunSun1+12)=6),JunSun1+12,\"\"),IF(AND(YEAR(JunSun1+19)=AnnéeCalendrier,MONTH(JunSun1+19)=6),JunSun1+19,\"\"))","v":"2019-06-14"},{"$f":"IF(DAY(JunSun1)=1,IF(AND(YEAR(JunSun1+13)=AnnéeCalendrier,MONTH(JunSun1+13)=6),JunSun1+13,\"\"),IF(AND(YEAR(JunSun1+20)=AnnéeCalendrier,MONTH(JunSun1+20)=6),JunSun1+20,\"\"))","v":"2019-06-15"},{"$f":"IF(DAY(JunSun1)=1,IF(AND(YEAR(JunSun1+14)=AnnéeCalendrier,MONTH(JunSun1+14)=6),JunSun1+14,\"\"),IF(AND(YEAR(JunSun1+21)=AnnéeCalendrier,MONTH(JunSun1+21)=6),JunSun1+21,\"\"))","v":"2019-06-16"}]
[null,null,{"$f":"IF(DAY(MaySun1)=1,IF(AND(YEAR(MaySun1+15)=AnnéeCalendrier,MONTH(MaySun1+15)=5),MaySun1+15,\"\"),IF(AND(YEAR(MaySun1+22)=AnnéeCalendrier,MONTH(MaySun1+22)=5),MaySun1+22,\"\"))","v":"2019-05-20"},{"$f":"IF(DAY(MaySun1)=1,IF(AND(YEAR(MaySun1+16)=AnnéeCalendrier,MONTH(MaySun1+16)=5),MaySun1+16,\"\"),IF(AND(YEAR(MaySun1+23)=AnnéeCalendrier,MONTH(MaySun1+23)=5),MaySun1+23,\"\"))","v":"2019-05-21"},{"$f":"IF(DAY(MaySun1)=1,IF(AND(YEAR(MaySun1+17)=AnnéeCalendrier,MONTH(MaySun1+17)=5),MaySun1+17,\"\"),IF(AND(YEAR(MaySun1+24)=AnnéeCalendrier,MONTH(MaySun1+24)=5),MaySun1+24,\"\"))","v":"2019-05-22"},{"$f":"IF(DAY(MaySun1)=1,IF(AND(YEAR(MaySun1+18)=AnnéeCalendrier,MONTH(MaySun1+18)=5),MaySun1+18,\"\"),IF(AND(YEAR(MaySun1+25)=AnnéeCalendrier,MONTH(MaySun1+25)=5),MaySun1+25,\"\"))","v":"2019-05-23"},{"$f":"IF(DAY(MaySun1)=1,IF(AND(YEAR(MaySun1+19)=AnnéeCalendrier,MONTH(MaySun1+19)=5),MaySun1+19,\"\"),IF(AND(YEAR(MaySun1+26)=AnnéeCalendrier,MONTH(MaySun1+26)=5),MaySun1+26,\"\"))","v":"2019-05-24"},{"$f":"IF(DAY(MaySun1)=1,IF(AND(YEAR(MaySun1+20)=AnnéeCalendrier,MONTH(MaySun1+20)=5),MaySun1+20,\"\"),IF(AND(YEAR(MaySun1+27)=AnnéeCalendrier,MONTH(MaySun1+27)=5),MaySun1+27,\"\"))","v":"2019-05-25"},{"$f":"IF(DAY(MaySun1)=1,IF(AND(YEAR(MaySun1+21)=AnnéeCalendrier,MONTH(MaySun1+21)=5),MaySun1+21,\"\"),IF(AND(YEAR(MaySun1+28)=AnnéeCalendrier,MONTH(MaySun1+28)=5),MaySun1+28,\"\"))","v":"2019-05-26"},null,{"$f":"IF(DAY(JunSun1)=1,IF(AND(YEAR(JunSun1+15)=AnnéeCalendrier,MONTH(JunSun1+15)=6),JunSun1+15,\"\"),IF(AND(YEAR(JunSun1+22)=AnnéeCalendrier,MONTH(JunSun1+22)=6),JunSun1+22,\"\"))","v":"2019-06-17"},{"$f":"IF(DAY(JunSun1)=1,IF(AND(YEAR(JunSun1+16)=AnnéeCalendrier,MONTH(JunSun1+16)=6),JunSun1+16,\"\"),IF(AND(YEAR(JunSun1+23)=AnnéeCalendrier,MONTH(JunSun1+23)=6),JunSun1+23,\"\"))","v":"2019-06-18"},{"$f":"IF(DAY(JunSun1)=1,IF(AND(YEAR(JunSun1+17)=AnnéeCalendrier,MONTH(JunSun1+17)=6),JunSun1+17,\"\"),IF(AND(YEAR(JunSun1+24)=AnnéeCalendrier,MONTH(JunSun1+24)=6),JunSun1+24,\"\"))","v":"2019-06-19"},{"$f":"IF(DAY(JunSun1)=1,IF(AND(YEAR(JunSun1+18)=AnnéeCalendrier,MONTH(JunSun1+18)=6),JunSun1+18,\"\"),IF(AND(YEAR(JunSun1+25)=AnnéeCalendrier,MONTH(JunSun1+25)=6),JunSun1+25,\"\"))","v":"2019-06-20"},{"$f":"IF(DAY(JunSun1)=1,IF(AND(YEAR(JunSun1+19)=AnnéeCalendrier,MONTH(JunSun1+19)=6),JunSun1+19,\"\"),IF(AND(YEAR(JunSun1+26)=AnnéeCalendrier,MONTH(JunSun1+26)=6),JunSun1+26,\"\"))","v":"2019-06-21"},{"$f":"IF(DAY(JunSun1)=1,IF(AND(YEAR(JunSun1+20)=AnnéeCalendrier,MONTH(JunSun1+20)=6),JunSun1+20,\"\"),IF(AND(YEAR(JunSun1+27)=AnnéeCalendrier,MONTH(JunSun1+27)=6),JunSun1+27,\"\"))","v":"2019-06-22"},{"$f":"IF(DAY(JunSun1)=1,IF(AND(YEAR(JunSun1+21)=AnnéeCalendrier,MONTH(JunSun1+21)=6),JunSun1+21,\"\"),IF(AND(YEAR(JunSun1+28)=AnnéeCalendrier,MONTH(JunSun1+28)=6),JunSun1+28,\"\"))","v":"2019-06-23"}]
[null,null,{"$f":"IF(DAY(MaySun1)=1,IF(AND(YEAR(MaySun1+22)=AnnéeCalendrier,MONTH(MaySun1+22)=5),MaySun1+22,\"\"),IF(AND(YEAR(MaySun1+29)=AnnéeCalendrier,MONTH(MaySun1+29)=5),MaySun1+29,\"\"))","v":"2019-05-27"},{"$f":"IF(DAY(MaySun1)=1,IF(AND(YEAR(MaySun1+23)=AnnéeCalendrier,MONTH(MaySun1+23)=5),MaySun1+23,\"\"),IF(AND(YEAR(MaySun1+30)=AnnéeCalendrier,MONTH(MaySun1+30)=5),MaySun1+30,\"\"))","v":"2019-05-28"},{"$f":"IF(DAY(MaySun1)=1,IF(AND(YEAR(MaySun1+24)=AnnéeCalendrier,MONTH(MaySun1+24)=5),MaySun1+24,\"\"),IF(AND(YEAR(MaySun1+31)=AnnéeCalendrier,MONTH(MaySun1+31)=5),MaySun1+31,\"\"))","v":"2019-05-29"},{"$f":"IF(DAY(MaySun1)=1,IF(AND(YEAR(MaySun1+25)=AnnéeCalendrier,MONTH(MaySun1+25)=5),MaySun1+25,\"\"),IF(AND(YEAR(MaySun1+32)=AnnéeCalendrier,MONTH(MaySun1+32)=5),MaySun1+32,\"\"))","v":"2019-05-30"},{"$f":"IF(DAY(MaySun1)=1,IF(AND(YEAR(MaySun1+26)=AnnéeCalendrier,MONTH(MaySun1+26)=5),MaySun1+26,\"\"),IF(AND(YEAR(MaySun1+33)=AnnéeCalendrier,MONTH(MaySun1+33)=5),MaySun1+33,\"\"))","v":"2019-05-31"},{"$f":"IF(DAY(MaySun1)=1,IF(AND(YEAR(MaySun1+27)=AnnéeCalendrier,MONTH(MaySun1+27)=5),MaySun1+27,\"\"),IF(AND(YEAR(MaySun1+34)=AnnéeCalendrier,MONTH(MaySun1+34)=5),MaySun1+34,\"\"))","v":""},{"$f":"IF(DAY(MaySun1)=1,IF(AND(YEAR(MaySun1+28)=AnnéeCalendrier,MONTH(MaySun1+28)=5),MaySun1+28,\"\"),IF(AND(YEAR(MaySun1+35)=AnnéeCalendrier,MONTH(MaySun1+35)=5),MaySun1+35,\"\"))","v":""},null,{"$f":"IF(DAY(JunSun1)=1,IF(AND(YEAR(JunSun1+22)=AnnéeCalendrier,MONTH(JunSun1+22)=6),JunSun1+22,\"\"),IF(AND(YEAR(JunSun1+29)=AnnéeCalendrier,MONTH(JunSun1+29)=6),JunSun1+29,\"\"))","v":"2019-06-24"},{"$f":"IF(DAY(JunSun1)=1,IF(AND(YEAR(JunSun1+23)=AnnéeCalendrier,MONTH(JunSun1+23)=6),JunSun1+23,\"\"),IF(AND(YEAR(JunSun1+30)=AnnéeCalendrier,MONTH(JunSun1+30)=6),JunSun1+30,\"\"))","v":"2019-06-25"},{"$f":"IF(DAY(JunSun1)=1,IF(AND(YEAR(JunSun1+24)=AnnéeCalendrier,MONTH(JunSun1+24)=6),JunSun1+24,\"\"),IF(AND(YEAR(JunSun1+31)=AnnéeCalendrier,MONTH(JunSun1+31)=6),JunSun1+31,\"\"))","v":"2019-06-26"},{"$f":"IF(DAY(JunSun1)=1,IF(AND(YEAR(JunSun1+25)=AnnéeCalendrier,MONTH(JunSun1+25)=6),JunSun1+25,\"\"),IF(AND(YEAR(JunSun1+32)=AnnéeCalendrier,MONTH(JunSun1+32)=6),JunSun1+32,\"\"))","v":"2019-06-27"},{"$f":"IF(DAY(JunSun1)=1,IF(AND(YEAR(JunSun1+26)=AnnéeCalendrier,MONTH(JunSun1+26)=6),JunSun1+26,\"\"),IF(AND(YEAR(JunSun1+33)=AnnéeCalendrier,MONTH(JunSun1+33)=6),JunSun1+33,\"\"))","v":"2019-06-28"},{"$f":"IF(DAY(JunSun1)=1,IF(AND(YEAR(JunSun1+27)=AnnéeCalendrier,MONTH(JunSun1+27)=6),JunSun1+27,\"\"),IF(AND(YEAR(JunSun1+34)=AnnéeCalendrier,MONTH(JunSun1+34)=6),JunSun1+34,\"\"))","v":"2019-06-29"},{"$f":"IF(DAY(JunSun1)=1,IF(AND(YEAR(JunSun1+28)=AnnéeCalendrier,MONTH(JunSun1+28)=6),JunSun1+28,\"\"),IF(AND(YEAR(JunSun1+35)=AnnéeCalendrier,MONTH(JunSun1+35)=6),JunSun1+35,\"\"))","v":"2019-06-30"}]
[null,null,{"$f":"IF(DAY(MaySun1)=1,IF(AND(YEAR(MaySun1+29)=AnnéeCalendrier,MONTH(MaySun1+29)=5),MaySun1+29,\"\"),IF(AND(YEAR(MaySun1+36)=AnnéeCalendrier,MONTH(MaySun1+36)=5),MaySun1+36,\"\"))","v":""},{"$f":"IF(DAY(MaySun1)=1,IF(AND(YEAR(MaySun1+30)=AnnéeCalendrier,MONTH(MaySun1+30)=5),MaySun1+30,\"\"),IF(AND(YEAR(MaySun1+37)=AnnéeCalendrier,MONTH(MaySun1+37)=5),MaySun1+37,\"\"))","v":""},{"$f":"IF(DAY(MaySun1)=1,IF(AND(YEAR(MaySun1+31)=AnnéeCalendrier,MONTH(MaySun1+31)=5),MaySun1+31,\"\"),IF(AND(YEAR(MaySun1+38)=AnnéeCalendrier,MONTH(MaySun1+38)=5),MaySun1+38,\"\"))","v":""},{"$f":"IF(DAY(MaySun1)=1,IF(AND(YEAR(MaySun1+32)=AnnéeCalendrier,MONTH(MaySun1+32)=5),MaySun1+32,\"\"),IF(AND(YEAR(MaySun1+39)=AnnéeCalendrier,MONTH(MaySun1+39)=5),MaySun1+39,\"\"))","v":""},{"$f":"IF(DAY(MaySun1)=1,IF(AND(YEAR(MaySun1+33)=AnnéeCalendrier,MONTH(MaySun1+33)=5),MaySun1+33,\"\"),IF(AND(YEAR(MaySun1+40)=AnnéeCalendrier,MONTH(MaySun1+40)=5),MaySun1+40,\"\"))","v":""},{"$f":"IF(DAY(MaySun1)=1,IF(AND(YEAR(MaySun1+34)=AnnéeCalendrier,MONTH(MaySun1+34)=5),MaySun1+34,\"\"),IF(AND(YEAR(MaySun1+41)=AnnéeCalendrier,MONTH(MaySun1+41)=5),MaySun1+41,\"\"))","v":""},{"$f":"IF(DAY(MaySun1)=1,IF(AND(YEAR(MaySun1+35)=AnnéeCalendrier,MONTH(MaySun1+35)=5),MaySun1+35,\"\"),IF(AND(YEAR(MaySun1+42)=AnnéeCalendrier,MONTH(MaySun1+42)=5),MaySun1+42,\"\"))","v":""},null,{"$f":"IF(DAY(JunSun1)=1,IF(AND(YEAR(JunSun1+29)=AnnéeCalendrier,MONTH(JunSun1+29)=6),JunSun1+29,\"\"),IF(AND(YEAR(JunSun1+36)=AnnéeCalendrier,MONTH(JunSun1+36)=6),JunSun1+36,\"\"))","v":""},{"$f":"IF(DAY(JunSun1)=1,IF(AND(YEAR(JunSun1+30)=AnnéeCalendrier,MONTH(JunSun1+30)=6),JunSun1+30,\"\"),IF(AND(YEAR(JunSun1+37)=AnnéeCalendrier,MONTH(JunSun1+37)=6),JunSun1+37,\"\"))","v":""},{"$f":"IF(DAY(JunSun1)=1,IF(AND(YEAR(JunSun1+31)=AnnéeCalendrier,MONTH(JunSun1+31)=6),JunSun1+31,\"\"),IF(AND(YEAR(JunSun1+38)=AnnéeCalendrier,MONTH(JunSun1+38)=6),JunSun1+38,\"\"))","v":""},{"$f":"IF(DAY(JunSun1)=1,IF(AND(YEAR(JunSun1+32)=AnnéeCalendrier,MONTH(JunSun1+32)=6),JunSun1+32,\"\"),IF(AND(YEAR(JunSun1+39)=AnnéeCalendrier,MONTH(JunSun1+39)=6),JunSun1+39,\"\"))","v":""},{"$f":"IF(DAY(JunSun1)=1,IF(AND(YEAR(JunSun1+33)=AnnéeCalendrier,MONTH(JunSun1+33)=6),JunSun1+33,\"\"),IF(AND(YEAR(JunSun1+40)=AnnéeCalendrier,MONTH(JunSun1+40)=6),JunSun1+40,\"\"))","v":""},{"$f":"IF(DAY(JunSun1)=1,IF(AND(YEAR(JunSun1+34)=AnnéeCalendrier,MONTH(JunSun1+34)=6),JunSun1+34,\"\"),IF(AND(YEAR(JunSun1+41)=AnnéeCalendrier,MONTH(JunSun1+41)=6),JunSun1+41,\"\"))","v":""},{"$f":"IF(DAY(JunSun1)=1,IF(AND(YEAR(JunSun1+35)=AnnéeCalendrier,MONTH(JunSun1+35)=6),JunSun1+35,\"\"),IF(AND(YEAR(JunSun1+42)=AnnéeCalendrier,MONTH(JunSun1+42)=6),JunSun1+42,\"\"))","v":""}]
[]
[null,null,"JUILLET",{"$nulls":7},"AOÛT"]
[null,null,"L","M","M","J","V","S","D",null,"L","M","M","J","V","S","D"]
[null,null,{"$f":"IF(DAY(JulSun1)=1,\"\",IF(AND(YEAR(JulSun1+1)=AnnéeCalendrier,MONTH(JulSun1+1)=7),JulSun1+1,\"\"))","v":"2019-07-01"},{"$f":"IF(DAY(JulSun1)=1,\"\",IF(AND(YEAR(JulSun1+2)=AnnéeCalendrier,MONTH(JulSun1+2)=7),JulSun1+2,\"\"))","v":"2019-07-02"},{"$f":"IF(DAY(JulSun1)=1,\"\",IF(AND(YEAR(JulSun1+3)=AnnéeCalendrier,MONTH(JulSun1+3)=7),JulSun1+3,\"\"))","v":"2019-07-03"},{"$f":"IF(DAY(JulSun1)=1,\"\",IF(AND(YEAR(JulSun1+4)=AnnéeCalendrier,MONTH(JulSun1+4)=7),JulSun1+4,\"\"))","v":"2019-07-04"},{"$f":"IF(DAY(JulSun1)=1,\"\",IF(AND(YEAR(JulSun1+5)=AnnéeCalendrier,MONTH(JulSun1+5)=7),JulSun1+5,\"\"))","v":"2019-07-05"},{"$f":"IF(DAY(JulSun1)=1,\"\",IF(AND(YEAR(JulSun1+6)=AnnéeCalendrier,MONTH(JulSun1+6)=7),JulSun1+6,\"\"))","v":"2019-07-06"},{"$f":"IF(DAY(JulSun1)=1,IF(AND(YEAR(JulSun1)=AnnéeCalendrier,MONTH(JulSun1)=7),JulSun1,\"\"),IF(AND(YEAR(JulSun1+7)=AnnéeCalendrier,MONTH(JulSun1+7)=7),JulSun1+7,\"\"))","v":"2019-07-07"},null,{"$f":"IF(DAY(AugSun1)=1,\"\",IF(AND(YEAR(AugSun1+1)=AnnéeCalendrier,MONTH(AugSun1+1)=8),AugSun1+1,\"\"))","v":""},{"$f":"IF(DAY(AugSun1)=1,\"\",IF(AND(YEAR(AugSun1+2)=AnnéeCalendrier,MONTH(AugSun1+2)=8),AugSun1+2,\"\"))","v":""},{"$f":"IF(DAY(AugSun1)=1,\"\",IF(AND(YEAR(AugSun1+3)=AnnéeCalendrier,MONTH(AugSun1+3)=8),AugSun1+3,\"\"))","v":""},{"$f":"IF(DAY(AugSun1)=1,\"\",IF(AND(YEAR(AugSun1+4)=AnnéeCalendrier,MONTH(AugSun1+4)=8),AugSun1+4,\"\"))","v":"2019-08-01"},{"$f":"IF(DAY(AugSun1)=1,\"\",IF(AND(YEAR(AugSun1+5)=AnnéeCalendrier,MONTH(AugSun1+5)=8),AugSun1+5,\"\"))","v":"2019-08-02"},{"$f":"IF(DAY(AugSun1)=1,\"\",IF(AND(YEAR(AugSun1+6)=AnnéeCalendrier,MONTH(AugSun1+6)=8),AugSun1+6,\"\"))","v":"2019-08-03"},{"$f":"IF(DAY(AugSun1)=1,IF(AND(YEAR(AugSun1)=AnnéeCalendrier,MONTH(AugSun1)=8),AugSun1,\"\"),IF(AND(YEAR(AugSun1+7)=AnnéeCalendrier,MONTH(AugSun1+7)=8),AugSun1+7,\"\"))","v":"2019-08-04"}]
[null,null,{"$f":"IF(DAY(JulSun1)=1,IF(AND(YEAR(JulSun1+1)=AnnéeCalendrier,MONTH(JulSun1+1)=7),JulSun1+1,\"\"),IF(AND(YEAR(JulSun1+8)=AnnéeCalendrier,MONTH(JulSun1+8)=7),JulSun1+8,\"\"))","v":"2019-07-08"},{"$f":"IF(DAY(JulSun1)=1,IF(AND(YEAR(JulSun1+2)=AnnéeCalendrier,MONTH(JulSun1+2)=7),JulSun1+2,\"\"),IF(AND(YEAR(JulSun1+9)=AnnéeCalendrier,MONTH(JulSun1+9)=7),JulSun1+9,\"\"))","v":"2019-07-09"},{"$f":"IF(DAY(JulSun1)=1,IF(AND(YEAR(JulSun1+3)=AnnéeCalendrier,MONTH(JulSun1+3)=7),JulSun1+3,\"\"),IF(AND(YEAR(JulSun1+10)=AnnéeCalendrier,MONTH(JulSun1+10)=7),JulSun1+10,\"\"))","v":"2019-07-10"},{"$f":"IF(DAY(JulSun1)=1,IF(AND(YEAR(JulSun1+4)=AnnéeCalendrier,MONTH(JulSun1+4)=7),JulSun1+4,\"\"),IF(AND(YEAR(JulSun1+11)=AnnéeCalendrier,MONTH(JulSun1+11)=7),JulSun1+11,\"\"))","v":"2019-07-11"},{"$f":"IF(DAY(JulSun1)=1,IF(AND(YEAR(JulSun1+5)=AnnéeCalendrier,MONTH(JulSun1+5)=7),JulSun1+5,\"\"),IF(AND(YEAR(JulSun1+12)=AnnéeCalendrier,MONTH(JulSun1+12)=7),JulSun1+12,\"\"))","v":"2019-07-12"},{"$f":"IF(DAY(JulSun1)=1,IF(AND(YEAR(JulSun1+6)=AnnéeCalendrier,MONTH(JulSun1+6)=7),JulSun1+6,\"\"),IF(AND(YEAR(JulSun1+13)=AnnéeCalendrier,MONTH(JulSun1+13)=7),JulSun1+13,\"\"))","v":"2019-07-13"},{"$f":"IF(DAY(JulSun1)=1,IF(AND(YEAR(JulSun1+7)=AnnéeCalendrier,MONTH(JulSun1+7)=7),JulSun1+7,\"\"),IF(AND(YEAR(JulSun1+14)=AnnéeCalendrier,MONTH(JulSun1+14)=7),JulSun1+14,\"\"))","v":"2019-07-14"},null,{"$f":"IF(DAY(AugSun1)=1,IF(AND(YEAR(AugSun1+1)=AnnéeCalendrier,MONTH(AugSun1+1)=8),AugSun1+1,\"\"),IF(AND(YEAR(AugSun1+8)=AnnéeCalendrier,MONTH(AugSun1+8)=8),AugSun1+8,\"\"))","v":"2019-08-05"},{"$f":"IF(DAY(AugSun1)=1,IF(AND(YEAR(AugSun1+2)=AnnéeCalendrier,MONTH(AugSun1+2)=8),AugSun1+2,\"\"),IF(AND(YEAR(AugSun1+9)=AnnéeCalendrier,MONTH(AugSun1+9)=8),AugSun1+9,\"\"))","v":"2019-08-06"},{"$f":"IF(DAY(AugSun1)=1,IF(AND(YEAR(AugSun1+3)=AnnéeCalendrier,MONTH(AugSun1+3)=8),AugSun1+3,\"\"),IF(AND(YEAR(AugSun1+10)=AnnéeCalendrier,MONTH(AugSun1+10)=8),AugSun1+10,\"\"))","v":"2019-08-07"},{"$f":"IF(DAY(AugSun1)=1,IF(AND(YEAR(AugSun1+4)=AnnéeCalendrier,MONTH(AugSun1+4)=8),AugSun1+4,\"\"),IF(AND(YEAR(AugSun1+11)=AnnéeCalendrier,MONTH(AugSun1+11)=8),AugSun1+11,\"\"))","v":"2019-08-08"},{"$f":"IF(DAY(AugSun1)=1,IF(AND(YEAR(AugSun1+5)=AnnéeCalendrier,MONTH(AugSun1+5)=8),AugSun1+5,\"\"),IF(AND(YEAR(AugSun1+12)=AnnéeCalendrier,MONTH(AugSun1+12)=8),AugSun1+12,\"\"))","v":"2019-08-09"},{"$f":"IF(DAY(AugSun1)=1,IF(AND(YEAR(AugSun1+6)=AnnéeCalendrier,MONTH(AugSun1+6)=8),AugSun1+6,\"\"),IF(AND(YEAR(AugSun1+13)=AnnéeCalendrier,MONTH(AugSun1+13)=8),AugSun1+13,\"\"))","v":"2019-08-10"},{"$f":"IF(DAY(AugSun1)=1,IF(AND(YEAR(AugSun1+7)=AnnéeCalendrier,MONTH(AugSun1+7)=8),AugSun1+7,\"\"),IF(AND(YEAR(AugSun1+14)=AnnéeCalendrier,MONTH(AugSun1+14)=8),AugSun1+14,\"\"))","v":"2019-08-11"}]
[null,null,{"$f":"IF(DAY(JulSun1)=1,IF(AND(YEAR(JulSun1+8)=AnnéeCalendrier,MONTH(JulSun1+8)=7),JulSun1+8,\"\"),IF(AND(YEAR(JulSun1+15)=AnnéeCalendrier,MONTH(JulSun1+15)=7),JulSun1+15,\"\"))","v":"2019-07-15"},{"$f":"IF(DAY(JulSun1)=1,IF(AND(YEAR(JulSun1+9)=AnnéeCalendrier,MONTH(JulSun1+9)=7),JulSun1+9,\"\"),IF(AND(YEAR(JulSun1+16)=AnnéeCalendrier,MONTH(JulSun1+16)=7),JulSun1+16,\"\"))","v":"2019-07-16"},{"$f":"IF(DAY(JulSun1)=1,IF(AND(YEAR(JulSun1+10)=AnnéeCalendrier,MONTH(JulSun1+10)=7),JulSun1+10,\"\"),IF(AND(YEAR(JulSun1+17)=AnnéeCalendrier,MONTH(JulSun1+17)=7),JulSun1+17,\"\"))","v":"2019-07-17"},{"$f":"IF(DAY(JulSun1)=1,IF(AND(YEAR(JulSun1+11)=AnnéeCalendrier,MONTH(JulSun1+11)=7),JulSun1+11,\"\"),IF(AND(YEAR(JulSun1+18)=AnnéeCalendrier,MONTH(JulSun1+18)=7),JulSun1+18,\"\"))","v":"2019-07-18"},{"$f":"IF(DAY(JulSun1)=1,IF(AND(YEAR(JulSun1+12)=AnnéeCalendrier,MONTH(JulSun1+12)=7),JulSun1+12,\"\"),IF(AND(YEAR(JulSun1+19)=AnnéeCalendrier,MONTH(JulSun1+19)=7),JulSun1+19,\"\"))","v":"2019-07-19"},{"$f":"IF(DAY(JulSun1)=1,IF(AND(YEAR(JulSun1+13)=AnnéeCalendrier,MONTH(JulSun1+13)=7),JulSun1+13,\"\"),IF(AND(YEAR(JulSun1+20)=AnnéeCalendrier,MONTH(JulSun1+20)=7),JulSun1+20,\"\"))","v":"2019-07-20"},{"$f":"IF(DAY(JulSun1)=1,IF(AND(YEAR(JulSun1+14)=AnnéeCalendrier,MONTH(JulSun1+14)=7),JulSun1+14,\"\"),IF(AND(YEAR(JulSun1+21)=AnnéeCalendrier,MONTH(JulSun1+21)=7),JulSun1+21,\"\"))","v":"2019-07-21"},null,{"$f":"IF(DAY(AugSun1)=1,IF(AND(YEAR(AugSun1+8)=AnnéeCalendrier,MONTH(AugSun1+8)=8),AugSun1+8,\"\"),IF(AND(YEAR(AugSun1+15)=AnnéeCalendrier,MONTH(AugSun1+15)=8),AugSun1+15,\"\"))","v":"2019-08-12"},{"$f":"IF(DAY(AugSun1)=1,IF(AND(YEAR(AugSun1+9)=AnnéeCalendrier,MONTH(AugSun1+9)=8),AugSun1+9,\"\"),IF(AND(YEAR(AugSun1+16)=AnnéeCalendrier,MONTH(AugSun1+16)=8),AugSun1+16,\"\"))","v":"2019-08-13"},{"$f":"IF(DAY(AugSun1)=1,IF(AND(YEAR(AugSun1+10)=AnnéeCalendrier,MONTH(AugSun1+10)=8),AugSun1+10,\"\"),IF(AND(YEAR(AugSun1+17)=AnnéeCalendrier,MONTH(AugSun1+17)=8),AugSun1+17,\"\"))","v":"2019-08-14"},{"$f":"IF(DAY(AugSun1)=1,IF(AND(YEAR(AugSun1+11)=AnnéeCalendrier,MONTH(AugSun1+11)=8),AugSun1+11,\"\"),IF(AND(YEAR(AugSun1+18)=AnnéeCalendrier,MONTH(AugSun1+18)=8),AugSun1+18,\"\"))","v":"2019-08-15"},{"$f":"IF(DAY(AugSun1)=1,IF(AND(YEAR(AugSun1+12)=AnnéeCalendrier,MONTH(AugSun1+12)=8),AugSun1+12,\"\"),IF(AND(YEAR(AugSun1+19)=AnnéeCalendrier,MONTH(AugSun1+19)=8),AugSun1+19,\"\"))","v":"2019-08-16"},{"$f":"IF(DAY(AugSun1)=1,IF(AND(YEAR(AugSun1+13)=AnnéeCalendrier,MONTH(AugSun1+13)=8),AugSun1+13,\"\"),IF(AND(YEAR(AugSun1+20)=AnnéeCalendrier,MONTH(AugSun1+20)=8),AugSun1+20,\"\"))","v":"2019-08-17"},{"$f":"IF(DAY(AugSun1)=1,IF(AND(YEAR(AugSun1+14)=AnnéeCalendrier,MONTH(AugSun1+14)=8),AugSun1+14,\"\"),IF(AND(YEAR(AugSun1+21)=AnnéeCalendrier,MONTH(AugSun1+21)=8),AugSun1+21,\"\"))","v":"2019-08-18"}]
[null,null,{"$f":"IF(DAY(JulSun1)=1,IF(AND(YEAR(JulSun1+15)=AnnéeCalendrier,MONTH(JulSun1+15)=7),JulSun1+15,\"\"),IF(AND(YEAR(JulSun1+22)=AnnéeCalendrier,MONTH(JulSun1+22)=7),JulSun1+22,\"\"))","v":"2019-07-22"},{"$f":"IF(DAY(JulSun1)=1,IF(AND(YEAR(JulSun1+16)=AnnéeCalendrier,MONTH(JulSun1+16)=7),JulSun1+16,\"\"),IF(AND(YEAR(JulSun1+23)=AnnéeCalendrier,MONTH(JulSun1+23)=7),JulSun1+23,\"\"))","v":"2019-07-23"},{"$f":"IF(DAY(JulSun1)=1,IF(AND(YEAR(JulSun1+17)=AnnéeCalendrier,MONTH(JulSun1+17)=7),JulSun1+17,\"\"),IF(AND(YEAR(JulSun1+24)=AnnéeCalendrier,MONTH(JulSun1+24)=7),JulSun1+24,\"\"))","v":"2019-07-24"},{"$f":"IF(DAY(JulSun1)=1,IF(AND(YEAR(JulSun1+18)=AnnéeCalendrier,MONTH(JulSun1+18)=7),JulSun1+18,\"\"),IF(AND(YEAR(JulSun1+25)=AnnéeCalendrier,MONTH(JulSun1+25)=7),JulSun1+25,\"\"))","v":"2019-07-25"},{"$f":"IF(DAY(JulSun1)=1,IF(AND(YEAR(JulSun1+19)=AnnéeCalendrier,MONTH(JulSun1+19)=7),JulSun1+19,\"\"),IF(AND(YEAR(JulSun1+26)=AnnéeCalendrier,MONTH(JulSun1+26)=7),JulSun1+26,\"\"))","v":"2019-07-26"},{"$f":"IF(DAY(JulSun1)=1,IF(AND(YEAR(JulSun1+20)=AnnéeCalendrier,MONTH(JulSun1+20)=7),JulSun1+20,\"\"),IF(AND(YEAR(JulSun1+27)=AnnéeCalendrier,MONTH(JulSun1+27)=7),JulSun1+27,\"\"))","v":"2019-07-27"},{"$f":"IF(DAY(JulSun1)=1,IF(AND(YEAR(JulSun1+21)=AnnéeCalendrier,MONTH(JulSun1+21)=7),JulSun1+21,\"\"),IF(AND(YEAR(JulSun1+28)=AnnéeCalendrier,MONTH(JulSun1+28)=7),JulSun1+28,\"\"))","v":"2019-07-28"},null,{"$f":"IF(DAY(AugSun1)=1,IF(AND(YEAR(AugSun1+15)=AnnéeCalendrier,MONTH(AugSun1+15)=8),AugSun1+15,\"\"),IF(AND(YEAR(AugSun1+22)=AnnéeCalendrier,MONTH(AugSun1+22)=8),AugSun1+22,\"\"))","v":"2019-08-19"},{"$f":"IF(DAY(AugSun1)=1,IF(AND(YEAR(AugSun1+16)=AnnéeCalendrier,MONTH(AugSun1+16)=8),AugSun1+16,\"\"),IF(AND(YEAR(AugSun1+23)=AnnéeCalendrier,MONTH(AugSun1+23)=8),AugSun1+23,\"\"))","v":"2019-08-20"},{"$f":"IF(DAY(AugSun1)=1,IF(AND(YEAR(AugSun1+17)=AnnéeCalendrier,MONTH(AugSun1+17)=8),AugSun1+17,\"\"),IF(AND(YEAR(AugSun1+24)=AnnéeCalendrier,MONTH(AugSun1+24)=8),AugSun1+24,\"\"))","v":"2019-08-21"},{"$f":"IF(DAY(AugSun1)=1,IF(AND(YEAR(AugSun1+18)=AnnéeCalendrier,MONTH(AugSun1+18)=8),AugSun1+18,\"\"),IF(AND(YEAR(AugSun1+25)=AnnéeCalendrier,MONTH(AugSun1+25)=8),AugSun1+25,\"\"))","v":"2019-08-22"},{"$f":"IF(DAY(AugSun1)=1,IF(AND(YEAR(AugSun1+19)=AnnéeCalendrier,MONTH(AugSun1+19)=8),AugSun1+19,\"\"),IF(AND(YEAR(AugSun1+26)=AnnéeCalendrier,MONTH(AugSun1+26)=8),AugSun1+26,\"\"))","v":"2019-08-23"},{"$f":"IF(DAY(AugSun1)=1,IF(AND(YEAR(AugSun1+20)=AnnéeCalendrier,MONTH(AugSun1+20)=8),AugSun1+20,\"\"),IF(AND(YEAR(AugSun1+27)=AnnéeCalendrier,MONTH(AugSun1+27)=8),AugSun1+27,\"\"))","v":"2019-08-24"},{"$f":"IF(DAY(AugSun1)=1,IF(AND(YEAR(AugSun1+21)=AnnéeCalendrier,MONTH(AugSun1+21)=8),AugSun1+21,\"\"),IF(AND(YEAR(AugSun1+28)=AnnéeCalendrier,MONTH(AugSun1+28)=8),AugSun1+28,\"\"))","v":"2019-08-25"}]
[null,null,{"$f":"IF(DAY(JulSun1)=1,IF(AND(YEAR(JulSun1+22)=AnnéeCalendrier,MONTH(JulSun1+22)=7),JulSun1+22,\"\"),IF(AND(YEAR(JulSun1+29)=AnnéeCalendrier,MONTH(JulSun1+29)=7),JulSun1+29,\"\"))","v":"2019-07-29"},{"$f":"IF(DAY(JulSun1)=1,IF(AND(YEAR(JulSun1+23)=AnnéeCalendrier,MONTH(JulSun1+23)=7),JulSun1+23,\"\"),IF(AND(YEAR(JulSun1+30)=AnnéeCalendrier,MONTH(JulSun1+30)=7),JulSun1+30,\"\"))","v":"2019-07-30"},{"$f":"IF(DAY(JulSun1)=1,IF(AND(YEAR(JulSun1+24)=AnnéeCalendrier,MONTH(JulSun1+24)=7),JulSun1+24,\"\"),IF(AND(YEAR(JulSun1+31)=AnnéeCalendrier,MONTH(JulSun1+31)=7),JulSun1+31,\"\"))","v":"2019-07-31"},{"$f":"IF(DAY(JulSun1)=1,IF(AND(YEAR(JulSun1+25)=AnnéeCalendrier,MONTH(JulSun1+25)=7),JulSun1+25,\"\"),IF(AND(YEAR(JulSun1+32)=AnnéeCalendrier,MONTH(JulSun1+32)=7),JulSun1+32,\"\"))","v":""},{"$f":"IF(DAY(JulSun1)=1,IF(AND(YEAR(JulSun1+26)=AnnéeCalendrier,MONTH(JulSun1+26)=7),JulSun1+26,\"\"),IF(AND(YEAR(JulSun1+33)=AnnéeCalendrier,MONTH(JulSun1+33)=7),JulSun1+33,\"\"))","v":""},{"$f":"IF(DAY(JulSun1)=1,IF(AND(YEAR(JulSun1+27)=AnnéeCalendrier,MONTH(JulSun1+27)=7),JulSun1+27,\"\"),IF(AND(YEAR(JulSun1+34)=AnnéeCalendrier,MONTH(JulSun1+34)=7),JulSun1+34,\"\"))","v":""},{"$f":"IF(DAY(JulSun1)=1,IF(AND(YEAR(JulSun1+28)=AnnéeCalendrier,MONTH(JulSun1+28)=7),JulSun1+28,\"\"),IF(AND(YEAR(JulSun1+35)=AnnéeCalendrier,MONTH(JulSun1+35)=7),JulSun1+35,\"\"))","v":""},null,{"$f":"IF(DAY(AugSun1)=1,IF(AND(YEAR(AugSun1+22)=AnnéeCalendrier,MONTH(AugSun1+22)=8),AugSun1+22,\"\"),IF(AND(YEAR(AugSun1+29)=AnnéeCalendrier,MONTH(AugSun1+29)=8),AugSun1+29,\"\"))","v":"2019-08-26"},{"$f":"IF(DAY(AugSun1)=1,IF(AND(YEAR(AugSun1+23)=AnnéeCalendrier,MONTH(AugSun1+23)=8),AugSun1+23,\"\"),IF(AND(YEAR(AugSun1+30)=AnnéeCalendrier,MONTH(AugSun1+30)=8),AugSun1+30,\"\"))","v":"2019-08-27"},{"$f":"IF(DAY(AugSun1)=1,IF(AND(YEAR(AugSun1+24)=AnnéeCalendrier,MONTH(AugSun1+24)=8),AugSun1+24,\"\"),IF(AND(YEAR(AugSun1+31)=AnnéeCalendrier,MONTH(AugSun1+31)=8),AugSun1+31,\"\"))","v":"2019-08-28"},{"$f":"IF(DAY(AugSun1)=1,IF(AND(YEAR(AugSun1+25)=AnnéeCalendrier,MONTH(AugSun1+25)=8),AugSun1+25,\"\"),IF(AND(YEAR(AugSun1+32)=AnnéeCalendrier,MONTH(AugSun1+32)=8),AugSun1+32,\"\"))","v":"2019-08-29"},{"$f":"IF(DAY(AugSun1)=1,IF(AND(YEAR(AugSun1+26)=AnnéeCalendrier,MONTH(AugSun1+26)=8),AugSun1+26,\"\"),IF(AND(YEAR(AugSun1+33)=AnnéeCalendrier,MONTH(AugSun1+33)=8),AugSun1+33,\"\"))","v":"2019-08-30"},{"$f":"IF(DAY(AugSun1)=1,IF(AND(YEAR(AugSun1+27)=AnnéeCalendrier,MONTH(AugSun1+27)=8),AugSun1+27,\"\"),IF(AND(YEAR(AugSun1+34)=AnnéeCalendrier,MONTH(AugSun1+34)=8),AugSun1+34,\"\"))","v":"2019-08-31"},{"$f":"IF(DAY(AugSun1)=1,IF(AND(YEAR(AugSun1+28)=AnnéeCalendrier,MONTH(AugSun1+28)=8),AugSun1+28,\"\"),IF(AND(YEAR(AugSun1+35)=AnnéeCalendrier,MONTH(AugSun1+35)=8),AugSun1+35,\"\"))","v":""}]
[null,null,{"$f":"IF(DAY(JulSun1)=1,IF(AND(YEAR(JulSun1+29)=AnnéeCalendrier,MONTH(JulSun1+29)=7),JulSun1+29,\"\"),IF(AND(YEAR(JulSun1+36)=AnnéeCalendrier,MONTH(JulSun1+36)=7),JulSun1+36,\"\"))","v":""},{"$f":"IF(DAY(JulSun1)=1,IF(AND(YEAR(JulSun1+30)=AnnéeCalendrier,MONTH(JulSun1+30)=7),JulSun1+30,\"\"),IF(AND(YEAR(JulSun1+37)=AnnéeCalendrier,MONTH(JulSun1+37)=7),JulSun1+37,\"\"))","v":""},{"$f":"IF(DAY(JulSun1)=1,IF(AND(YEAR(JulSun1+31)=AnnéeCalendrier,MONTH(JulSun1+31)=7),JulSun1+31,\"\"),IF(AND(YEAR(JulSun1+38)=AnnéeCalendrier,MONTH(JulSun1+38)=7),JulSun1+38,\"\"))","v":""},{"$f":"IF(DAY(JulSun1)=1,IF(AND(YEAR(JulSun1+32)=AnnéeCalendrier,MONTH(JulSun1+32)=7),JulSun1+32,\"\"),IF(AND(YEAR(JulSun1+39)=AnnéeCalendrier,MONTH(JulSun1+39)=7),JulSun1+39,\"\"))","v":""},{"$f":"IF(DAY(JulSun1)=1,IF(AND(YEAR(JulSun1+33)=AnnéeCalendrier,MONTH(JulSun1+33)=7),JulSun1+33,\"\"),IF(AND(YEAR(JulSun1+40)=AnnéeCalendrier,MONTH(JulSun1+40)=7),JulSun1+40,\"\"))","v":""},{"$f":"IF(DAY(JulSun1)=1,IF(AND(YEAR(JulSun1+34)=AnnéeCalendrier,MONTH(JulSun1+34)=7),JulSun1+34,\"\"),IF(AND(YEAR(JulSun1+41)=AnnéeCalendrier,MONTH(JulSun1+41)=7),JulSun1+41,\"\"))","v":""},{"$f":"IF(DAY(JulSun1)=1,IF(AND(YEAR(JulSun1+35)=AnnéeCalendrier,MONTH(JulSun1+35)=7),JulSun1+35,\"\"),IF(AND(YEAR(JulSun1+42)=AnnéeCalendrier,MONTH(JulSun1+42)=7),JulSun1+42,\"\"))","v":""},null,{"$f":"IF(DAY(AugSun1)=1,IF(AND(YEAR(AugSun1+29)=AnnéeCalendrier,MONTH(AugSun1+29)=8),AugSun1+29,\"\"),IF(AND(YEAR(AugSun1+36)=AnnéeCalendrier,MONTH(AugSun1+36)=8),AugSun1+36,\"\"))","v":""},{"$f":"IF(DAY(AugSun1)=1,IF(AND(YEAR(AugSun1+30)=AnnéeCalendrier,MONTH(AugSun1+30)=8),AugSun1+30,\"\"),IF(AND(YEAR(AugSun1+37)=AnnéeCalendrier,MONTH(AugSun1+37)=8),AugSun1+37,\"\"))","v":""},{"$f":"IF(DAY(AugSun1)=1,IF(AND(YEAR(AugSun1+31)=AnnéeCalendrier,MONTH(AugSun1+31)=8),AugSun1+31,\"\"),IF(AND(YEAR(AugSun1+38)=AnnéeCalendrier,MONTH(AugSun1+38)=8),AugSun1+38,\"\"))","v":""},{"$f":"IF(DAY(AugSun1)=1,IF(AND(YEAR(AugSun1+32)=AnnéeCalendrier,MONTH(AugSun1+32)=8),AugSun1+32,\"\"),IF(AND(YEAR(AugSun1+39)=AnnéeCalendrier,MONTH(AugSun1+39)=8),AugSun1+39,\"\"))","v":""},{"$f":"IF(DAY(AugSun1)=1,IF(AND(YEAR(AugSun1+33)=AnnéeCalendrier,MONTH(AugSun1+33)=8),AugSun1+33,\"\"),IF(AND(YEAR(AugSun1+40)=AnnéeCalendrier,MONTH(AugSun1+40)=8),AugSun1+40,\"\"))","v":""},{"$f":"IF(DAY(AugSun1)=1,IF(AND(YEAR(AugSun1+34)=AnnéeCalendrier,MONTH(AugSun1+34)=8),AugSun1+34,\"\"),IF(AND(YEAR(AugSun1+41)=AnnéeCalendrier,MONTH(AugSun1+41)=8),AugSun1+41,\"\"))","v":""},{"$f":"IF(DAY(AugSun1)=1,IF(AND(YEAR(AugSun1+35)=AnnéeCalendrier,MONTH(AugSun1+35)=8),AugSun1+35,\"\"),IF(AND(YEAR(AugSun1+42)=AnnéeCalendrier,MONTH(AugSun1+42)=8),AugSun1+42,\"\"))","v":""}]
[]
[null,null,"SEPTEMBRE",{"$nulls":7},"OCTOBRE"]
[null,null,"L","M","M","J","V","S","D",null,"L","M","M","J","V","S","D"]
[null,null,{"$f":"IF(DAY(SepSun1)=1,\"\",IF(AND(YEAR(SepSun1+1)=AnnéeCalendrier,MONTH(SepSun1+1)=9),SepSun1+1,\"\"))","v":""},{"$f":"IF(DAY(SepSun1)=1,\"\",IF(AND(YEAR(SepSun1+2)=AnnéeCalendrier,MONTH(SepSun1+2)=9),SepSun1+2,\"\"))","v":""},{"$f":"IF(DAY(SepSun1)=1,\"\",IF(AND(YEAR(SepSun1+3)=AnnéeCalendrier,MONTH(SepSun1+3)=9),SepSun1+3,\"\"))","v":""},{"$f":"IF(DAY(SepSun1)=1,\"\",IF(AND(YEAR(SepSun1+4)=AnnéeCalendrier,MONTH(SepSun1+4)=9),SepSun1+4,\"\"))","v":""},{"$f":"IF(DAY(SepSun1)=1,\"\",IF(AND(YEAR(SepSun1+5)=AnnéeCalendrier,MONTH(SepSun1+5)=9),SepSun1+5,\"\"))","v":""},{"$f":"IF(DAY(SepSun1)=1,\"\",IF(AND(YEAR(SepSun1+6)=AnnéeCalendrier,MONTH(SepSun1+6)=9),SepSun1+6,\"\"))","v":""},{"$f":"IF(DAY(SepSun1)=1,IF(AND(YEAR(SepSun1)=AnnéeCalendrier,MONTH(SepSun1)=9),SepSun1,\"\"),IF(AND(YEAR(SepSun1+7)=AnnéeCalendrier,MONTH(SepSun1+7)=9),SepSun1+7,\"\"))","v":"2019-09-01"},null,{"$f":"IF(DAY(OctSun1)=1,\"\",IF(AND(YEAR(OctSun1+1)=AnnéeCalendrier,MONTH(OctSun1+1)=10),OctSun1+1,\"\"))","v":""},{"$f":"IF(DAY(OctSun1)=1,\"\",IF(AND(YEAR(OctSun1+2)=AnnéeCalendrier,MONTH(OctSun1+2)=10),OctSun1+2,\"\"))","v":"2019-10-01"},{"$f":"IF(DAY(OctSun1)=1,\"\",IF(AND(YEAR(OctSun1+3)=AnnéeCalendrier,MONTH(OctSun1+3)=10),OctSun1+3,\"\"))","v":"2019-10-02"},{"$f":"IF(DAY(OctSun1)=1,\"\",IF(AND(YEAR(OctSun1+4)=AnnéeCalendrier,MONTH(OctSun1+4)=10),OctSun1+4,\"\"))","v":"2019-10-03"},{"$f":"IF(DAY(OctSun1)=1,\"\",IF(AND(YEAR(OctSun1+5)=AnnéeCalendrier,MONTH(OctSun1+5)=10),OctSun1+5,\"\"))","v":"2019-10-04"},{"$f":"IF(DAY(OctSun1)=1,\"\",IF(AND(YEAR(OctSun1+6)=AnnéeCalendrier,MONTH(OctSun1+6)=10),OctSun1+6,\"\"))","v":"2019-10-05"},{"$f":"IF(DAY(OctSun1)=1,IF(AND(YEAR(OctSun1)=AnnéeCalendrier,MONTH(OctSun1)=10),OctSun1,\"\"),IF(AND(YEAR(OctSun1+7)=AnnéeCalendrier,MONTH(OctSun1+7)=10),OctSun1+7,\"\"))","v":"2019-10-06"}]
[null,null,{"$f":"IF(DAY(SepSun1)=1,IF(AND(YEAR(SepSun1+1)=AnnéeCalendrier,MONTH(SepSun1+1)=9),SepSun1+1,\"\"),IF(AND(YEAR(SepSun1+8)=AnnéeCalendrier,MONTH(SepSun1+8)=9),SepSun1+8,\"\"))","v":"2019-09-02"},{"$f":"IF(DAY(SepSun1)=1,IF(AND(YEAR(SepSun1+2)=AnnéeCalendrier,MONTH(SepSun1+2)=9),SepSun1+2,\"\"),IF(AND(YEAR(SepSun1+9)=AnnéeCalendrier,MONTH(SepSun1+9)=9),SepSun1+9,\"\"))","v":"2019-09-03"},{"$f":"IF(DAY(SepSun1)=1,IF(AND(YEAR(SepSun1+3)=AnnéeCalendrier,MONTH(SepSun1+3)=9),SepSun1+3,\"\"),IF(AND(YEAR(SepSun1+10)=AnnéeCalendrier,MONTH(SepSun1+10)=9),SepSun1+10,\"\"))","v":"2019-09-04"},{"$f":"IF(DAY(SepSun1)=1,IF(AND(YEAR(SepSun1+4)=AnnéeCalendrier,MONTH(SepSun1+4)=9),SepSun1+4,\"\"),IF(AND(YEAR(SepSun1+11)=AnnéeCalendrier,MONTH(SepSun1+11)=9),SepSun1+11,\"\"))","v":"2019-09-05"},{"$f":"IF(DAY(SepSun1)=1,IF(AND(YEAR(SepSun1+5)=AnnéeCalendrier,MONTH(SepSun1+5)=9),SepSun1+5,\"\"),IF(AND(YEAR(SepSun1+12)=AnnéeCalendrier,MONTH(SepSun1+12)=9),SepSun1+12,\"\"))","v":"2019-09-06"},{"$f":"IF(DAY(SepSun1)=1,IF(AND(YEAR(SepSun1+6)=AnnéeCalendrier,MONTH(SepSun1+6)=9),SepSun1+6,\"\"),IF(AND(YEAR(SepSun1+13)=AnnéeCalendrier,MONTH(SepSun1+13)=9),SepSun1+13,\"\"))","v":"2019-09-07"},{"$f":"IF(DAY(SepSun1)=1,IF(AND(YEAR(SepSun1+7)=AnnéeCalendrier,MONTH(SepSun1+7)=9),SepSun1+7,\"\"),IF(AND(YEAR(SepSun1+14)=AnnéeCalendrier,MONTH(SepSun1+14)=9),SepSun1+14,\"\"))","v":"2019-09-08"},null,{"$f":"IF(DAY(OctSun1)=1,IF(AND(YEAR(OctSun1+1)=AnnéeCalendrier,MONTH(OctSun1+1)=10),OctSun1+1,\"\"),IF(AND(YEAR(OctSun1+8)=AnnéeCalendrier,MONTH(OctSun1+8)=10),OctSun1+8,\"\"))","v":"2019-10-07"},{"$f":"IF(DAY(OctSun1)=1,IF(AND(YEAR(OctSun1+2)=AnnéeCalendrier,MONTH(OctSun1+2)=10),OctSun1+2,\"\"),IF(AND(YEAR(OctSun1+9)=AnnéeCalendrier,MONTH(OctSun1+9)=10),OctSun1+9,\"\"))","v":"2019-10-08"},{"$f":"IF(DAY(OctSun1)=1,IF(AND(YEAR(OctSun1+3)=AnnéeCalendrier,MONTH(OctSun1+3)=10),OctSun1+3,\"\"),IF(AND(YEAR(OctSun1+10)=AnnéeCalendrier,MONTH(OctSun1+10)=10),OctSun1+10,\"\"))","v":"2019-10-09"},{"$f":"IF(DAY(OctSun1)=1,IF(AND(YEAR(OctSun1+4)=AnnéeCalendrier,MONTH(OctSun1+4)=10),OctSun1+4,\"\"),IF(AND(YEAR(OctSun1+11)=AnnéeCalendrier,MONTH(OctSun1+11)=10),OctSun1+11,\"\"))","v":"2019-10-10"},{"$f":"IF(DAY(OctSun1)=1,IF(AND(YEAR(OctSun1+5)=AnnéeCalendrier,MONTH(OctSun1+5)=10),OctSun1+5,\"\"),IF(AND(YEAR(OctSun1+12)=AnnéeCalendrier,MONTH(OctSun1+12)=10),OctSun1+12,\"\"))","v":"2019-10-11"},{"$f":"IF(DAY(OctSun1)=1,IF(AND(YEAR(OctSun1+6)=AnnéeCalendrier,MONTH(OctSun1+6)=10),OctSun1+6,\"\"),IF(AND(YEAR(OctSun1+13)=AnnéeCalendrier,MONTH(OctSun1+13)=10),OctSun1+13,\"\"))","v":"2019-10-12"},{"$f":"IF(DAY(OctSun1)=1,IF(AND(YEAR(OctSun1+7)=AnnéeCalendrier,MONTH(OctSun1+7)=10),OctSun1+7,\"\"),IF(AND(YEAR(OctSun1+14)=AnnéeCalendrier,MONTH(OctSun1+14)=10),OctSun1+14,\"\"))","v":"2019-10-13"}]
[null,null,{"$f":"IF(DAY(SepSun1)=1,IF(AND(YEAR(SepSun1+8)=AnnéeCalendrier,MONTH(SepSun1+8)=9),SepSun1+8,\"\"),IF(AND(YEAR(SepSun1+15)=AnnéeCalendrier,MONTH(SepSun1+15)=9),SepSun1+15,\"\"))","v":"2019-09-09"},{"$f":"IF(DAY(SepSun1)=1,IF(AND(YEAR(SepSun1+9)=AnnéeCalendrier,MONTH(SepSun1+9)=9),SepSun1+9,\"\"),IF(AND(YEAR(SepSun1+16)=AnnéeCalendrier,MONTH(SepSun1+16)=9),SepSun1+16,\"\"))","v":"2019-09-10"},{"$f":"IF(DAY(SepSun1)=1,IF(AND(YEAR(SepSun1+10)=AnnéeCalendrier,MONTH(SepSun1+10)=9),SepSun1+10,\"\"),IF(AND(YEAR(SepSun1+17)=AnnéeCalendrier,MONTH(SepSun1+17)=9),SepSun1+17,\"\"))","v":"2019-09-11"},{"$f":"IF(DAY(SepSun1)=1,IF(AND(YEAR(SepSun1+11)=AnnéeCalendrier,MONTH(SepSun1+11)=9),SepSun1+11,\"\"),IF(AND(YEAR(SepSun1+18)=AnnéeCalendrier,MONTH(SepSun1+18)=9),SepSun1+18,\"\"))","v":"2019-09-12"},{"$f":"IF(DAY(SepSun1)=1,IF(AND(YEAR(SepSun1+12)=AnnéeCalendrier,MONTH(SepSun1+12)=9),SepSun1+12,\"\"),IF(AND(YEAR(SepSun1+19)=AnnéeCalendrier,MONTH(SepSun1+19)=9),SepSun1+19,\"\"))","v":"2019-09-13"},{"$f":"IF(DAY(SepSun1)=1,IF(AND(YEAR(SepSun1+13)=AnnéeCalendrier,MONTH(SepSun1+13)=9),SepSun1+13,\"\"),IF(AND(YEAR(SepSun1+20)=AnnéeCalendrier,MONTH(SepSun1+20)=9),SepSun1+20,\"\"))","v":"2019-09-14"},{"$f":"IF(DAY(SepSun1)=1,IF(AND(YEAR(SepSun1+14)=AnnéeCalendrier,MONTH(SepSun1+14)=9),SepSun1+14,\"\"),IF(AND(YEAR(SepSun1+21)=AnnéeCalendrier,MONTH(SepSun1+21)=9),SepSun1+21,\"\"))","v":"2019-09-15"},null,{"$f":"IF(DAY(OctSun1)=1,IF(AND(YEAR(OctSun1+8)=AnnéeCalendrier,MONTH(OctSun1+8)=10),OctSun1+8,\"\"),IF(AND(YEAR(OctSun1+15)=AnnéeCalendrier,MONTH(OctSun1+15)=10),OctSun1+15,\"\"))","v":"2019-10-14"},{"$f":"IF(DAY(OctSun1)=1,IF(AND(YEAR(OctSun1+9)=AnnéeCalendrier,MONTH(OctSun1+9)=10),OctSun1+9,\"\"),IF(AND(YEAR(OctSun1+16)=AnnéeCalendrier,MONTH(OctSun1+16)=10),OctSun1+16,\"\"))","v":"2019-10-15"},{"$f":"IF(DAY(OctSun1)=1,IF(AND(YEAR(OctSun1+10)=AnnéeCalendrier,MONTH(OctSun1+10)=10),OctSun1+10,\"\"),IF(AND(YEAR(OctSun1+17)=AnnéeCalendrier,MONTH(OctSun1+17)=10),OctSun1+17,\"\"))","v":"2019-10-16"},{"$f":"IF(DAY(OctSun1)=1,IF(AND(YEAR(OctSun1+11)=AnnéeCalendrier,MONTH(OctSun1+11)=10),OctSun1+11,\"\"),IF(AND(YEAR(OctSun1+18)=AnnéeCalendrier,MONTH(OctSun1+18)=10),OctSun1+18,\"\"))","v":"2019-10-17"},{"$f":"IF(DAY(OctSun1)=1,IF(AND(YEAR(OctSun1+12)=AnnéeCalendrier,MONTH(OctSun1+12)=10),OctSun1+12,\"\"),IF(AND(YEAR(OctSun1+19)=AnnéeCalendrier,MONTH(OctSun1+19)=10),OctSun1+19,\"\"))","v":"2019-10-18"},{"$f":"IF(DAY(OctSun1)=1,IF(AND(YEAR(OctSun1+13)=AnnéeCalendrier,MONTH(OctSun1+13)=10),OctSun1+13,\"\"),IF(AND(YEAR(OctSun1+20)=AnnéeCalendrier,MONTH(OctSun1+20)=10),OctSun1+20,\"\"))","v":"2019-10-19"},{"$f":"IF(DAY(OctSun1)=1,IF(AND(YEAR(OctSun1+14)=AnnéeCalendrier,MONTH(OctSun1+14)=10),OctSun1+14,\"\"),IF(AND(YEAR(OctSun1+21)=AnnéeCalendrier,MONTH(OctSun1+21)=10),OctSun1+21,\"\"))","v":"2019-10-20"}]
[null,null,{"$f":"IF(DAY(SepSun1)=1,IF(AND(YEAR(SepSun1+15)=AnnéeCalendrier,MONTH(SepSun1+15)=9),SepSun1+15,\"\"),IF(AND(YEAR(SepSun1+22)=AnnéeCalendrier,MONTH(SepSun1+22)=9),SepSun1+22,\"\"))","v":"2019-09-16"},{"$f":"IF(DAY(SepSun1)=1,IF(AND(YEAR(SepSun1+16)=AnnéeCalendrier,MONTH(SepSun1+16)=9),SepSun1+16,\"\"),IF(AND(YEAR(SepSun1+23)=AnnéeCalendrier,MONTH(SepSun1+23)=9),SepSun1+23,\"\"))","v":"2019-09-17"},{"$f":"IF(DAY(SepSun1)=1,IF(AND(YEAR(SepSun1+17)=AnnéeCalendrier,MONTH(SepSun1+17)=9),SepSun1+17,\"\"),IF(AND(YEAR(SepSun1+24)=AnnéeCalendrier,MONTH(SepSun1+24)=9),SepSun1+24,\"\"))","v":"2019-09-18"},{"$f":"IF(DAY(SepSun1)=1,IF(AND(YEAR(SepSun1+18)=AnnéeCalendrier,MONTH(SepSun1+18)=9),SepSun1+18,\"\"),IF(AND(YEAR(SepSun1+25)=AnnéeCalendrier,MONTH(SepSun1+25)=9),SepSun1+25,\"\"))","v":"2019-09-19"},{"$f":"IF(DAY(SepSun1)=1,IF(AND(YEAR(SepSun1+19)=AnnéeCalendrier,MONTH(SepSun1+19)=9),SepSun1+19,\"\"),IF(AND(YEAR(SepSun1+26)=AnnéeCalendrier,MONTH(SepSun1+26)=9),SepSun1+26,\"\"))","v":"2019-09-20"},{"$f":"IF(DAY(SepSun1)=1,IF(AND(YEAR(SepSun1+20)=AnnéeCalendrier,MONTH(SepSun1+20)=9),SepSun1+20,\"\"),IF(AND(YEAR(SepSun1+27)=AnnéeCalendrier,MONTH(SepSun1+27)=9),SepSun1+27,\"\"))","v":"2019-09-21"},{"$f":"IF(DAY(SepSun1)=1,IF(AND(YEAR(SepSun1+21)=AnnéeCalendrier,MONTH(SepSun1+21)=9),SepSun1+21,\"\"),IF(AND(YEAR(SepSun1+28)=AnnéeCalendrier,MONTH(SepSun1+28)=9),SepSun1+28,\"\"))","v":"2019-09-22"},null,{"$f":"IF(DAY(OctSun1)=1,IF(AND(YEAR(OctSun1+15)=AnnéeCalendrier,MONTH(OctSun1+15)=10),OctSun1+15,\"\"),IF(AND(YEAR(OctSun1+22)=AnnéeCalendrier,MONTH(OctSun1+22)=10),OctSun1+22,\"\"))","v":"2019-10-21"},{"$f":"IF(DAY(OctSun1)=1,IF(AND(YEAR(OctSun1+16)=AnnéeCalendrier,MONTH(OctSun1+16)=10),OctSun1+16,\"\"),IF(AND(YEAR(OctSun1+23)=AnnéeCalendrier,MONTH(OctSun1+23)=10),OctSun1+23,\"\"))","v":"2019-10-22"},{"$f":"IF(DAY(OctSun1)=1,IF(AND(YEAR(OctSun1+17)=AnnéeCalendrier,MONTH(OctSun1+17)=10),OctSun1+17,\"\"),IF(AND(YEAR(OctSun1+24)=AnnéeCalendrier,MONTH(OctSun1+24)=10),OctSun1+24,\"\"))","v":"2019-10-23"},{"$f":"IF(DAY(OctSun1)=1,IF(AND(YEAR(OctSun1+18)=AnnéeCalendrier,MONTH(OctSun1+18)=10),OctSun1+18,\"\"),IF(AND(YEAR(OctSun1+25)=AnnéeCalendrier,MONTH(OctSun1+25)=10),OctSun1+25,\"\"))","v":"2019-10-24"},{"$f":"IF(DAY(OctSun1)=1,IF(AND(YEAR(OctSun1+19)=AnnéeCalendrier,MONTH(OctSun1+19)=10),OctSun1+19,\"\"),IF(AND(YEAR(OctSun1+26)=AnnéeCalendrier,MONTH(OctSun1+26)=10),OctSun1+26,\"\"))","v":"2019-10-25"},{"$f":"IF(DAY(OctSun1)=1,IF(AND(YEAR(OctSun1+20)=AnnéeCalendrier,MONTH(OctSun1+20)=10),OctSun1+20,\"\"),IF(AND(YEAR(OctSun1+27)=AnnéeCalendrier,MONTH(OctSun1+27)=10),OctSun1+27,\"\"))","v":"2019-10-26"},{"$f":"IF(DAY(OctSun1)=1,IF(AND(YEAR(OctSun1+21)=AnnéeCalendrier,MONTH(OctSun1+21)=10),OctSun1+21,\"\"),IF(AND(YEAR(OctSun1+28)=AnnéeCalendrier,MONTH(OctSun1+28)=10),OctSun1+28,\"\"))","v":"2019-10-27"},{"$nulls":3},"12 rue des Peupliers"]
[null,null,{"$f":"IF(DAY(SepSun1)=1,IF(AND(YEAR(SepSun1+22)=AnnéeCalendrier,MONTH(SepSun1+22)=9),SepSun1+22,\"\"),IF(AND(YEAR(SepSun1+29)=AnnéeCalendrier,MONTH(SepSun1+29)=9),SepSun1+29,\"\"))","v":"2019-09-23"},{"$f":"IF(DAY(SepSun1)=1,IF(AND(YEAR(SepSun1+23)=AnnéeCalendrier,MONTH(SepSun1+23)=9),SepSun1+23,\"\"),IF(AND(YEAR(SepSun1+30)=AnnéeCalendrier,MONTH(SepSun1+30)=9),SepSun1+30,\"\"))","v":"2019-09-24"},{"$f":"IF(DAY(SepSun1)=1,IF(AND(YEAR(SepSun1+24)=AnnéeCalendrier,MONTH(SepSun1+24)=9),SepSun1+24,\"\"),IF(AND(YEAR(SepSun1+31)=AnnéeCalendrier,MONTH(SepSun1+31)=9),SepSun1+31,\"\"))","v":"2019-09-25"},{"$f":"IF(DAY(SepSun1)=1,IF(AND(YEAR(SepSun1+25)=AnnéeCalendrier,MONTH(SepSun1+25)=9),SepSun1+25,\"\"),IF(AND(YEAR(SepSun1+32)=AnnéeCalendrier,MONTH(SepSun1+32)=9),SepSun1+32,\"\"))","v":"2019-09-26"},{"$f":"IF(DAY(SepSun1)=1,IF(AND(YEAR(SepSun1+26)=AnnéeCalendrier,MONTH(SepSun1+26)=9),SepSun1+26,\"\"),IF(AND(YEAR(SepSun1+33)=AnnéeCalendrier,MONTH(SepSun1+33)=9),SepSun1+33,\"\"))","v":"2019-09-27"},{"$f":"IF(DAY(SepSun1)=1,IF(AND(YEAR(SepSun1+27)=AnnéeCalendrier,MONTH(SepSun1+27)=9),SepSun1+27,\"\"),IF(AND(YEAR(SepSun1+34)=AnnéeCalendrier,MONTH(SepSun1+34)=9),SepSun1+34,\"\"))","v":"2019-09-28"},{"$f":"IF(DAY(SepSun1)=1,IF(AND(YEAR(SepSun1+28)=AnnéeCalendrier,MONTH(SepSun1+28)=9),SepSun1+28,\"\"),IF(AND(YEAR(SepSun1+35)=AnnéeCalendrier,MONTH(SepSun1+35)=9),SepSun1+35,\"\"))","v":"2019-09-29"},null,{"$f":"IF(DAY(OctSun1)=1,IF(AND(YEAR(OctSun1+22)=AnnéeCalendrier,MONTH(OctSun1+22)=10),OctSun1+22,\"\"),IF(AND(YEAR(OctSun1+29)=AnnéeCalendrier,MONTH(OctSun1+29)=10),OctSun1+29,\"\"))","v":"2019-10-28"},{"$f":"IF(DAY(OctSun1)=1,IF(AND(YEAR(OctSun1+23)=AnnéeCalendrier,MONTH(OctSun1+23)=10),OctSun1+23,\"\"),IF(AND(YEAR(OctSun1+30)=AnnéeCalendrier,MONTH(OctSun1+30)=10),OctSun1+30,\"\"))","v":"2019-10-29"},{"$f":"IF(DAY(OctSun1)=1,IF(AND(YEAR(OctSun1+24)=AnnéeCalendrier,MONTH(OctSun1+24)=10),OctSun1+24,\"\"),IF(AND(YEAR(OctSun1+31)=AnnéeCalendrier,MONTH(OctSun1+31)=10),OctSun1+31,\"\"))","v":"2019-10-30"},{"$f":"IF(DAY(OctSun1)=1,IF(AND(YEAR(OctSun1+25)=AnnéeCalendrier,MONTH(OctSun1+25)=10),OctSun1+25,\"\"),IF(AND(YEAR(OctSun1+32)=AnnéeCalendrier,MONTH(OctSun1+32)=10),OctSun1+32,\"\"))","v":"2019-10-31"},{"$f":"IF(DAY(OctSun1)=1,IF(AND(YEAR(OctSun1+26)=AnnéeCalendrier,MONTH(OctSun1+26)=10),OctSun1+26,\"\"),IF(AND(YEAR(OctSun1+33)=AnnéeCalendrier,MONTH(OctSun1+33)=10),OctSun1+33,\"\"))","v":""},{"$f":"IF(DAY(OctSun1)=1,IF(AND(YEAR(OctSun1+27)=AnnéeCalendrier,MONTH(OctSun1+27)=10),OctSun1+27,\"\"),IF(AND(YEAR(OctSun1+34)=AnnéeCalendrier,MONTH(OctSun1+34)=10),OctSun1+34,\"\"))","v":""},{"$f":"IF(DAY(OctSun1)=1,IF(AND(YEAR(OctSun1+28)=AnnéeCalendrier,MONTH(OctSun1+28)=10),OctSun1+28,\"\"),IF(AND(YEAR(OctSun1+35)=AnnéeCalendrier,MONTH(OctSun1+35)=10),OctSun1+35,\"\"))","v":""},{"$nulls":3},"75000 Paris"]
[null,null,{"$f":"IF(DAY(SepSun1)=1,IF(AND(YEAR(SepSun1+29)=AnnéeCalendrier,MONTH(SepSun1+29)=9),SepSun1+29,\"\"),IF(AND(YEAR(SepSun1+36)=AnnéeCalendrier,MONTH(SepSun1+36)=9),SepSun1+36,\"\"))","v":"2019-09-30"},{"$f":"IF(DAY(SepSun1)=1,IF(AND(YEAR(SepSun1+30)=AnnéeCalendrier,MONTH(SepSun1+30)=9),SepSun1+30,\"\"),IF(AND(YEAR(SepSun1+37)=AnnéeCalendrier,MONTH(SepSun1+37)=9),SepSun1+37,\"\"))","v":""},{"$f":"IF(DAY(SepSun1)=1,IF(AND(YEAR(SepSun1+31)=AnnéeCalendrier,MONTH(SepSun1+31)=9),SepSun1+31,\"\"),IF(AND(YEAR(SepSun1+38)=AnnéeCalendrier,MONTH(SepSun1+38)=9),SepSun1+38,\"\"))","v":""},{"$f":"IF(DAY(SepSun1)=1,IF(AND(YEAR(SepSun1+32)=AnnéeCalendrier,MONTH(SepSun1+32)=9),SepSun1+32,\"\"),IF(AND(YEAR(SepSun1+39)=AnnéeCalendrier,MONTH(SepSun1+39)=9),SepSun1+39,\"\"))","v":""},{"$f":"IF(DAY(SepSun1)=1,IF(AND(YEAR(SepSun1+33)=AnnéeCalendrier,MONTH(SepSun1+33)=9),SepSun1+33,\"\"),IF(AND(YEAR(SepSun1+40)=AnnéeCalendrier,MONTH(SepSun1+40)=9),SepSun1+40,\"\"))","v":""},{"$f":"IF(DAY(SepSun1)=1,IF(AND(YEAR(SepSun1+34)=AnnéeCalendrier,MONTH(SepSun1+34)=9),SepSun1+34,\"\"),IF(AND(YEAR(SepSun1+41)=AnnéeCalendrier,MONTH(SepSun1+41)=9),SepSun1+41,\"\"))","v":""},{"$f":"IF(DAY(SepSun1)=1,IF(AND(YEAR(SepSun1+35)=AnnéeCalendrier,MONTH(SepSun1+35)=9),SepSun1+35,\"\"),IF(AND(YEAR(SepSun1+42)=AnnéeCalendrier,MONTH(SepSun1+42)=9),SepSun1+42,\"\"))","v":""},null,{"$f":"IF(DAY(OctSun1)=1,IF(AND(YEAR(OctSun1+29)=AnnéeCalendrier,MONTH(OctSun1+29)=10),OctSun1+29,\"\"),IF(AND(YEAR(OctSun1+36)=AnnéeCalendrier,MONTH(OctSun1+36)=10),OctSun1+36,\"\"))","v":""},{"$f":"IF(DAY(OctSun1)=1,IF(AND(YEAR(OctSun1+30)=AnnéeCalendrier,MONTH(OctSun1+30)=10),OctSun1+30,\"\"),IF(AND(YEAR(OctSun1+37)=AnnéeCalendrier,MONTH(OctSun1+37)=10),OctSun1+37,\"\"))","v":""},{"$f":"IF(DAY(OctSun1)=1,IF(AND(YEAR(OctSun1+31)=AnnéeCalendrier,MONTH(OctSun1+31)=10),OctSun1+31,\"\"),IF(AND(YEAR(OctSun1+38)=AnnéeCalendrier,MONTH(OctSun1+38)=10),OctSun1+38,\"\"))","v":""},{"$f":"IF(DAY(OctSun1)=1,IF(AND(YEAR(OctSun1+32)=AnnéeCalendrier,MONTH(OctSun1+32)=10),OctSun1+32,\"\"),IF(AND(YEAR(OctSun1+39)=AnnéeCalendrier,MONTH(OctSun1+39)=10),OctSun1+39,\"\"))","v":""},{"$f":"IF(DAY(OctSun1)=1,IF(AND(YEAR(OctSun1+33)=AnnéeCalendrier,MONTH(OctSun1+33)=10),OctSun1+33,\"\"),IF(AND(YEAR(OctSun1+40)=AnnéeCalendrier,MONTH(OctSun1+40)=10),OctSun1+40,\"\"))","v":""},{"$f":"IF(DAY(OctSun1)=1,IF(AND(YEAR(OctSun1+34)=AnnéeCalendrier,MONTH(OctSun1+34)=10),OctSun1+34,\"\"),IF(AND(YEAR(OctSun1+41)=AnnéeCalendrier,MONTH(OctSun1+41)=10),OctSun1+41,\"\"))","v":""},{"$f":"IF(DAY(OctSun1)=1,IF(AND(YEAR(OctSun1+35)=AnnéeCalendrier,MONTH(OctSun1+35)=10),OctSun1+35,\"\"),IF(AND(YEAR(OctSun1+42)=AnnéeCalendrier,MONTH(OctSun1+42)=10),OctSun1+42,\"\"))","v":""}]
[{"$nulls":20},"0123456789"]
[null,null,"NOVEMBRE",{"$nulls":7},"DÉCEMBRE",{"$nulls":9},"info@contoso.com"]
[null,null,"L","M","M","J","V","S","D",null,"L","M","M","J","V","S","D",{"$nulls":3},"www.contoso.com"]
[null,null,{"$f":"IF(DAY(NovSun1)=1,\"\",IF(AND(YEAR(NovSun1+1)=AnnéeCalendrier,MONTH(NovSun1+1)=11),NovSun1+1,\"\"))","v":""},{"$f":"IF(DAY(NovSun1)=1,\"\",IF(AND(YEAR(NovSun1+2)=AnnéeCalendrier,MONTH(NovSun1+2)=11),NovSun1+2,\"\"))","v":""},{"$f":"IF(DAY(NovSun1)=1,\"\",IF(AND(YEAR(NovSun1+3)=AnnéeCalendrier,MONTH(NovSun1+3)=11),NovSun1+3,\"\"))","v":""},{"$f":"IF(DAY(NovSun1)=1,\"\",IF(AND(YEAR(NovSun1+4)=AnnéeCalendrier,MONTH(NovSun1+4)=11),NovSun1+4,\"\"))","v":""},{"$f":"IF(DAY(NovSun1)=1,\"\",IF(AND(YEAR(NovSun1+5)=AnnéeCalendrier,MONTH(NovSun1+5)=11),NovSun1+5,\"\"))","v":"2019-11-01"},{"$f":"IF(DAY(NovSun1)=1,\"\",IF(AND(YEAR(NovSun1+6)=AnnéeCalendrier,MONTH(NovSun1+6)=11),NovSun1+6,\"\"))","v":"2019-11-02"},{"$f":"IF(DAY(NovSun1)=1,IF(AND(YEAR(NovSun1)=AnnéeCalendrier,MONTH(NovSun1)=11),NovSun1,\"\"),IF(AND(YEAR(NovSun1+7)=AnnéeCalendrier,MONTH(NovSun1+7)=11),NovSun1+7,\"\"))","v":"2019-11-03"},null,{"$f":"IF(DAY(DecSun1)=1,\"\",IF(AND(YEAR(DecSun1+1)=AnnéeCalendrier,MONTH(DecSun1+1)=12),DecSun1+1,\"\"))","v":""},{"$f":"IF(DAY(DecSun1)=1,\"\",IF(AND(YEAR(DecSun1+2)=AnnéeCalendrier,MONTH(DecSun1+2)=12),DecSun1+2,\"\"))","v":""},{"$f":"IF(DAY(DecSun1)=1,\"\",IF(AND(YEAR(DecSun1+3)=AnnéeCalendrier,MONTH(DecSun1+3)=12),DecSun1+3,\"\"))","v":""},{"$f":"IF(DAY(DecSun1)=1,\"\",IF(AND(YEAR(DecSun1+4)=AnnéeCalendrier,MONTH(DecSun1+4)=12),DecSun1+4,\"\"))","v":""},{"$f":"IF(DAY(DecSun1)=1,\"\",IF(AND(YEAR(DecSun1+5)=AnnéeCalendrier,MONTH(DecSun1+5)=12),DecSun1+5,\"\"))","v":""},{"$f":"IF(DAY(DecSun1)=1,\"\",IF(AND(YEAR(DecSun1+6)=AnnéeCalendrier,MONTH(DecSun1+6)=12),DecSun1+6,\"\"))","v":""},{"$f":"IF(DAY(DecSun1)=1,IF(AND(YEAR(DecSun1)=AnnéeCalendrier,MONTH(DecSun1)=12),DecSun1,\"\"),IF(AND(YEAR(DecSun1+7)=AnnéeCalendrier,MONTH(DecSun1+7)=12),DecSun1+7,\"\"))","v":"2019-12-01"}]
[null,null,{"$f":"IF(DAY(NovSun1)=1,IF(AND(YEAR(NovSun1+1)=AnnéeCalendrier,MONTH(NovSun1+1)=11),NovSun1+1,\"\"),IF(AND(YEAR(NovSun1+8)=AnnéeCalendrier,MONTH(NovSun1+8)=11),NovSun1+8,\"\"))","v":"2019-11-04"},{"$f":"IF(DAY(NovSun1)=1,IF(AND(YEAR(NovSun1+2)=AnnéeCalendrier,MONTH(NovSun1+2)=11),NovSun1+2,\"\"),IF(AND(YEAR(NovSun1+9)=AnnéeCalendrier,MONTH(NovSun1+9)=11),NovSun1+9,\"\"))","v":"2019-11-05"},{"$f":"IF(DAY(NovSun1)=1,IF(AND(YEAR(NovSun1+3)=AnnéeCalendrier,MONTH(NovSun1+3)=11),NovSun1+3,\"\"),IF(AND(YEAR(NovSun1+10)=AnnéeCalendrier,MONTH(NovSun1+10)=11),NovSun1+10,\"\"))","v":"2019-11-06"},{"$f":"IF(DAY(NovSun1)=1,IF(AND(YEAR(NovSun1+4)=AnnéeCalendrier,MONTH(NovSun1+4)=11),NovSun1+4,\"\"),IF(AND(YEAR(NovSun1+11)=AnnéeCalendrier,MONTH(NovSun1+11)=11),NovSun1+11,\"\"))","v":"2019-11-07"},{"$f":"IF(DAY(NovSun1)=1,IF(AND(YEAR(NovSun1+5)=AnnéeCalendrier,MONTH(NovSun1+5)=11),NovSun1+5,\"\"),IF(AND(YEAR(NovSun1+12)=AnnéeCalendrier,MONTH(NovSun1+12)=11),NovSun1+12,\"\"))","v":"2019-11-08"},{"$f":"IF(DAY(NovSun1)=1,IF(AND(YEAR(NovSun1+6)=AnnéeCalendrier,MONTH(NovSun1+6)=11),NovSun1+6,\"\"),IF(AND(YEAR(NovSun1+13)=AnnéeCalendrier,MONTH(NovSun1+13)=11),NovSun1+13,\"\"))","v":"2019-11-09"},{"$f":"IF(DAY(NovSun1)=1,IF(AND(YEAR(NovSun1+7)=AnnéeCalendrier,MONTH(NovSun1+7)=11),NovSun1+7,\"\"),IF(AND(YEAR(NovSun1+14)=AnnéeCalendrier,MONTH(NovSun1+14)=11),NovSun1+14,\"\"))","v":"2019-11-10"},null,{"$f":"IF(DAY(DecSun1)=1,IF(AND(YEAR(DecSun1+1)=AnnéeCalendrier,MONTH(DecSun1+1)=12),DecSun1+1,\"\"),IF(AND(YEAR(DecSun1+8)=AnnéeCalendrier,MONTH(DecSun1+8)=12),DecSun1+8,\"\"))","v":"2019-12-02"},{"$f":"IF(DAY(DecSun1)=1,IF(AND(YEAR(DecSun1+2)=AnnéeCalendrier,MONTH(DecSun1+2)=12),DecSun1+2,\"\"),IF(AND(YEAR(DecSun1+9)=AnnéeCalendrier,MONTH(DecSun1+9)=12),DecSun1+9,\"\"))","v":"2019-12-03"},{"$f":"IF(DAY(DecSun1)=1,IF(AND(YEAR(DecSun1+3)=AnnéeCalendrier,MONTH(DecSun1+3)=12),DecSun1+3,\"\"),IF(AND(YEAR(DecSun1+10)=AnnéeCalendrier,MONTH(DecSun1+10)=12),DecSun1+10,\"\"))","v":"2019-12-04"},{"$f":"IF(DAY(DecSun1)=1,IF(AND(YEAR(DecSun1+4)=AnnéeCalendrier,MONTH(DecSun1+4)=12),DecSun1+4,\"\"),IF(AND(YEAR(DecSun1+11)=AnnéeCalendrier,MONTH(DecSun1+11)=12),DecSun1+11,\"\"))","v":"2019-12-05"},{"$f":"IF(DAY(DecSun1)=1,IF(AND(YEAR(DecSun1+5)=AnnéeCalendrier,MONTH(DecSun1+5)=12),DecSun1+5,\"\"),IF(AND(YEAR(DecSun1+12)=AnnéeCalendrier,MONTH(DecSun1+12)=12),DecSun1+12,\"\"))","v":"2019-12-06"},{"$f":"IF(DAY(DecSun1)=1,IF(AND(YEAR(DecSun1+6)=AnnéeCalendrier,MONTH(DecSun1+6)=12),DecSun1+6,\"\"),IF(AND(YEAR(DecSun1+13)=AnnéeCalendrier,MONTH(DecSun1+13)=12),DecSun1+13,\"\"))","v":"2019-12-07"},{"$f":"IF(DAY(DecSun1)=1,IF(AND(YEAR(DecSun1+7)=AnnéeCalendrier,MONTH(DecSun1+7)=12),DecSun1+7,\"\"),IF(AND(YEAR(DecSun1+14)=AnnéeCalendrier,MONTH(DecSun1+14)=12),DecSun1+14,\"\"))","v":"2019-12-08"}]
[null,null,{"$f":"IF(DAY(NovSun1)=1,IF(AND(YEAR(NovSun1+8)=AnnéeCalendrier,MONTH(NovSun1+8)=11),NovSun1+8,\"\"),IF(AND(YEAR(NovSun1+15)=AnnéeCalendrier,MONTH(NovSun1+15)=11),NovSun1+15,\"\"))","v":"2019-11-11"},{"$f":"IF(DAY(NovSun1)=1,IF(AND(YEAR(NovSun1+9)=AnnéeCalendrier,MONTH(NovSun1+9)=11),NovSun1+9,\"\"),IF(AND(YEAR(NovSun1+16)=AnnéeCalendrier,MONTH(NovSun1+16)=11),NovSun1+16,\"\"))","v":"2019-11-12"},{"$f":"IF(DAY(NovSun1)=1,IF(AND(YEAR(NovSun1+10)=AnnéeCalendrier,MONTH(NovSun1+10)=11),NovSun1+10,\"\"),IF(AND(YEAR(NovSun1+17)=AnnéeCalendrier,MONTH(NovSun1+17)=11),NovSun1+17,\"\"))","v":"2019-11-13"},{"$f":"IF(DAY(NovSun1)=1,IF(AND(YEAR(NovSun1+11)=AnnéeCalendrier,MONTH(NovSun1+11)=11),NovSun1+11,\"\"),IF(AND(YEAR(NovSun1+18)=AnnéeCalendrier,MONTH(NovSun1+18)=11),NovSun1+18,\"\"))","v":"2019-11-14"},{"$f":"IF(DAY(NovSun1)=1,IF(AND(YEAR(NovSun1+12)=AnnéeCalendrier,MONTH(NovSun1+12)=11),NovSun1+12,\"\"),IF(AND(YEAR(NovSun1+19)=AnnéeCalendrier,MONTH(NovSun1+19)=11),NovSun1+19,\"\"))","v":"2019-11-15"},{"$f":"IF(DAY(NovSun1)=1,IF(AND(YEAR(NovSun1+13)=AnnéeCalendrier,MONTH(NovSun1+13)=11),NovSun1+13,\"\"),IF(AND(YEAR(NovSun1+20)=AnnéeCalendrier,MONTH(NovSun1+20)=11),NovSun1+20,\"\"))","v":"2019-11-16"},{"$f":"IF(DAY(NovSun1)=1,IF(AND(YEAR(NovSun1+14)=AnnéeCalendrier,MONTH(NovSun1+14)=11),NovSun1+14,\"\"),IF(AND(YEAR(NovSun1+21)=AnnéeCalendrier,MONTH(NovSun1+21)=11),NovSun1+21,\"\"))","v":"2019-11-17"},null,{"$f":"IF(DAY(DecSun1)=1,IF(AND(YEAR(DecSun1+8)=AnnéeCalendrier,MONTH(DecSun1+8)=12),DecSun1+8,\"\"),IF(AND(YEAR(DecSun1+15)=AnnéeCalendrier,MONTH(DecSun1+15)=12),DecSun1+15,\"\"))","v":"2019-12-09"},{"$f":"IF(DAY(DecSun1)=1,IF(AND(YEAR(DecSun1+9)=AnnéeCalendrier,MONTH(DecSun1+9)=12),DecSun1+9,\"\"),IF(AND(YEAR(DecSun1+16)=AnnéeCalendrier,MONTH(DecSun1+16)=12),DecSun1+16,\"\"))","v":"2019-12-10"},{"$f":"IF(DAY(DecSun1)=1,IF(AND(YEAR(DecSun1+10)=AnnéeCalendrier,MONTH(DecSun1+10)=12),DecSun1+10,\"\"),IF(AND(YEAR(DecSun1+17)=AnnéeCalendrier,MONTH(DecSun1+17)=12),DecSun1+17,\"\"))","v":"2019-12-11"},{"$f":"IF(DAY(DecSun1)=1,IF(AND(YEAR(DecSun1+11)=AnnéeCalendrier,MONTH(DecSun1+11)=12),DecSun1+11,\"\"),IF(AND(YEAR(DecSun1+18)=AnnéeCalendrier,MONTH(DecSun1+18)=12),DecSun1+18,\"\"))","v":"2019-12-12"},{"$f":"IF(DAY(DecSun1)=1,IF(AND(YEAR(DecSun1+12)=AnnéeCalendrier,MONTH(DecSun1+12)=12),DecSun1+12,\"\"),IF(AND(YEAR(DecSun1+19)=AnnéeCalendrier,MONTH(DecSun1+19)=12),DecSun1+19,\"\"))","v":"2019-12-13"},{"$f":"IF(DAY(DecSun1)=1,IF(AND(YEAR(DecSun1+13)=AnnéeCalendrier,MONTH(DecSun1+13)=12),DecSun1+13,\"\"),IF(AND(YEAR(DecSun1+20)=AnnéeCalendrier,MONTH(DecSun1+20)=12),DecSun1+20,\"\"))","v":"2019-12-14"},{"$f":"IF(DAY(DecSun1)=1,IF(AND(YEAR(DecSun1+14)=AnnéeCalendrier,MONTH(DecSun1+14)=12),DecSun1+14,\"\"),IF(AND(YEAR(DecSun1+21)=AnnéeCalendrier,MONTH(DecSun1+21)=12),DecSun1+21,\"\"))","v":"2019-12-15"}]
[null,null,{"$f":"IF(DAY(NovSun1)=1,IF(AND(YEAR(NovSun1+15)=AnnéeCalendrier,MONTH(NovSun1+15)=11),NovSun1+15,\"\"),IF(AND(YEAR(NovSun1+22)=AnnéeCalendrier,MONTH(NovSun1+22)=11),NovSun1+22,\"\"))","v":"2019-11-18"},{"$f":"IF(DAY(NovSun1)=1,IF(AND(YEAR(NovSun1+16)=AnnéeCalendrier,MONTH(NovSun1+16)=11),NovSun1+16,\"\"),IF(AND(YEAR(NovSun1+23)=AnnéeCalendrier,MONTH(NovSun1+23)=11),NovSun1+23,\"\"))","v":"2019-11-19"},{"$f":"IF(DAY(NovSun1)=1,IF(AND(YEAR(NovSun1+17)=AnnéeCalendrier,MONTH(NovSun1+17)=11),NovSun1+17,\"\"),IF(AND(YEAR(NovSun1+24)=AnnéeCalendrier,MONTH(NovSun1+24)=11),NovSun1+24,\"\"))","v":"2019-11-20"},{"$f":"IF(DAY(NovSun1)=1,IF(AND(YEAR(NovSun1+18)=AnnéeCalendrier,MONTH(NovSun1+18)=11),NovSun1+18,\"\"),IF(AND(YEAR(NovSun1+25)=AnnéeCalendrier,MONTH(NovSun1+25)=11),NovSun1+25,\"\"))","v":"2019-11-21"},{"$f":"IF(DAY(NovSun1)=1,IF(AND(YEAR(NovSun1+19)=AnnéeCalendrier,MONTH(NovSun1+19)=11),NovSun1+19,\"\"),IF(AND(YEAR(NovSun1+26)=AnnéeCalendrier,MONTH(NovSun1+26)=11),NovSun1+26,\"\"))","v":"2019-11-22"},{"$f":"IF(DAY(NovSun1)=1,IF(AND(YEAR(NovSun1+20)=AnnéeCalendrier,MONTH(NovSun1+20)=11),NovSun1+20,\"\"),IF(AND(YEAR(NovSun1+27)=AnnéeCalendrier,MONTH(NovSun1+27)=11),NovSun1+27,\"\"))","v":"2019-11-23"},{"$f":"IF(DAY(NovSun1)=1,IF(AND(YEAR(NovSun1+21)=AnnéeCalendrier,MONTH(NovSun1+21)=11),NovSun1+21,\"\"),IF(AND(YEAR(NovSun1+28)=AnnéeCalendrier,MONTH(NovSun1+28)=11),NovSun1+28,\"\"))","v":"2019-11-24"},null,{"$f":"IF(DAY(DecSun1)=1,IF(AND(YEAR(DecSun1+15)=AnnéeCalendrier,MONTH(DecSun1+15)=12),DecSun1+15,\"\"),IF(AND(YEAR(DecSun1+22)=AnnéeCalendrier,MONTH(DecSun1+22)=12),DecSun1+22,\"\"))","v":"2019-12-16"},{"$f":"IF(DAY(DecSun1)=1,IF(AND(YEAR(DecSun1+16)=AnnéeCalendrier,MONTH(DecSun1+16)=12),DecSun1+16,\"\"),IF(AND(YEAR(DecSun1+23)=AnnéeCalendrier,MONTH(DecSun1+23)=12),DecSun1+23,\"\"))","v":"2019-12-17"},{"$f":"IF(DAY(DecSun1)=1,IF(AND(YEAR(DecSun1+17)=AnnéeCalendrier,MONTH(DecSun1+17)=12),DecSun1+17,\"\"),IF(AND(YEAR(DecSun1+24)=AnnéeCalendrier,MONTH(DecSun1+24)=12),DecSun1+24,\"\"))","v":"2019-12-18"},{"$f":"IF(DAY(DecSun1)=1,IF(AND(YEAR(DecSun1+18)=AnnéeCalendrier,MONTH(DecSun1+18)=12),DecSun1+18,\"\"),IF(AND(YEAR(DecSun1+25)=AnnéeCalendrier,MONTH(DecSun1+25)=12),DecSun1+25,\"\"))","v":"2019-12-19"},{"$f":"IF(DAY(DecSun1)=1,IF(AND(YEAR(DecSun1+19)=AnnéeCalendrier,MONTH(DecSun1+19)=12),DecSun1+19,\"\"),IF(AND(YEAR(DecSun1+26)=AnnéeCalendrier,MONTH(DecSun1+26)=12),DecSun1+26,\"\"))","v":"2019-12-20"},{"$f":"IF(DAY(DecSun1)=1,IF(AND(YEAR(DecSun1+20)=AnnéeCalendrier,MONTH(DecSun1+20)=12),DecSun1+20,\"\"),IF(AND(YEAR(DecSun1+27)=AnnéeCalendrier,MONTH(DecSun1+27)=12),DecSun1+27,\"\"))","v":"2019-12-21"},{"$f":"IF(DAY(DecSun1)=1,IF(AND(YEAR(DecSun1+21)=AnnéeCalendrier,MONTH(DecSun1+21)=12),DecSun1+21,\"\"),IF(AND(YEAR(DecSun1+28)=AnnéeCalendrier,MONTH(DecSun1+28)=12),DecSun1+28,\"\"))","v":"2019-12-22"}]
[null,null,{"$f":"IF(DAY(NovSun1)=1,IF(AND(YEAR(NovSun1+22)=AnnéeCalendrier,MONTH(NovSun1+22)=11),NovSun1+22,\"\"),IF(AND(YEAR(NovSun1+29)=AnnéeCalendrier,MONTH(NovSun1+29)=11),NovSun1+29,\"\"))","v":"2019-11-25"},{"$f":"IF(DAY(NovSun1)=1,IF(AND(YEAR(NovSun1+23)=AnnéeCalendrier,MONTH(NovSun1+23)=11),NovSun1+23,\"\"),IF(AND(YEAR(NovSun1+30)=AnnéeCalendrier,MONTH(NovSun1+30)=11),NovSun1+30,\"\"))","v":"2019-11-26"},{"$f":"IF(DAY(NovSun1)=1,IF(AND(YEAR(NovSun1+24)=AnnéeCalendrier,MONTH(NovSun1+24)=11),NovSun1+24,\"\"),IF(AND(YEAR(NovSun1+31)=AnnéeCalendrier,MONTH(NovSun1+31)=11),NovSun1+31,\"\"))","v":"2019-11-27"},{"$f":"IF(DAY(NovSun1)=1,IF(AND(YEAR(NovSun1+25)=AnnéeCalendrier,MONTH(NovSun1+25)=11),NovSun1+25,\"\"),IF(AND(YEAR(NovSun1+32)=AnnéeCalendrier,MONTH(NovSun1+32)=11),NovSun1+32,\"\"))","v":"2019-11-28"},{"$f":"IF(DAY(NovSun1)=1,IF(AND(YEAR(NovSun1+26)=AnnéeCalendrier,MONTH(NovSun1+26)=11),NovSun1+26,\"\"),IF(AND(YEAR(NovSun1+33)=AnnéeCalendrier,MONTH(NovSun1+33)=11),NovSun1+33,\"\"))","v":"2019-11-29"},{"$f":"IF(DAY(NovSun1)=1,IF(AND(YEAR(NovSun1+27)=AnnéeCalendrier,MONTH(NovSun1+27)=11),NovSun1+27,\"\"),IF(AND(YEAR(NovSun1+34)=AnnéeCalendrier,MONTH(NovSun1+34)=11),NovSun1+34,\"\"))","v":"2019-11-30"},{"$f":"IF(DAY(NovSun1)=1,IF(AND(YEAR(NovSun1+28)=AnnéeCalendrier,MONTH(NovSun1+28)=11),NovSun1+28,\"\"),IF(AND(YEAR(NovSun1+35)=AnnéeCalendrier,MONTH(NovSun1+35)=11),NovSun1+35,\"\"))","v":""},null,{"$f":"IF(DAY(DecSun1)=1,IF(AND(YEAR(DecSun1+22)=AnnéeCalendrier,MONTH(DecSun1+22)=12),DecSun1+22,\"\"),IF(AND(YEAR(DecSun1+29)=AnnéeCalendrier,MONTH(DecSun1+29)=12),DecSun1+29,\"\"))","v":"2019-12-23"},{"$f":"IF(DAY(DecSun1)=1,IF(AND(YEAR(DecSun1+23)=AnnéeCalendrier,MONTH(DecSun1+23)=12),DecSun1+23,\"\"),IF(AND(YEAR(DecSun1+30)=AnnéeCalendrier,MONTH(DecSun1+30)=12),DecSun1+30,\"\"))","v":"2019-12-24"},{"$f":"IF(DAY(DecSun1)=1,IF(AND(YEAR(DecSun1+24)=AnnéeCalendrier,MONTH(DecSun1+24)=12),DecSun1+24,\"\"),IF(AND(YEAR(DecSun1+31)=AnnéeCalendrier,MONTH(DecSun1+31)=12),DecSun1+31,\"\"))","v":"2019-12-25"},{"$f":"IF(DAY(DecSun1)=1,IF(AND(YEAR(DecSun1+25)=AnnéeCalendrier,MONTH(DecSun1+25)=12),DecSun1+25,\"\"),IF(AND(YEAR(DecSun1+32)=AnnéeCalendrier,MONTH(DecSun1+32)=12),DecSun1+32,\"\"))","v":"2019-12-26"},{"$f":"IF(DAY(DecSun1)=1,IF(AND(YEAR(DecSun1+26)=AnnéeCalendrier,MONTH(DecSun1+26)=12),DecSun1+26,\"\"),IF(AND(YEAR(DecSun1+33)=AnnéeCalendrier,MONTH(DecSun1+33)=12),DecSun1+33,\"\"))","v":"2019-12-27"},{"$f":"IF(DAY(DecSun1)=1,IF(AND(YEAR(DecSun1+27)=AnnéeCalendrier,MONTH(DecSun1+27)=12),DecSun1+27,\"\"),IF(AND(YEAR(DecSun1+34)=AnnéeCalendrier,MONTH(DecSun1+34)=12),DecSun1+34,\"\"))","v":"2019-12-28"},{"$f":"IF(DAY(DecSun1)=1,IF(AND(YEAR(DecSun1+28)=AnnéeCalendrier,MONTH(DecSun1+28)=12),DecSun1+28,\"\"),IF(AND(YEAR(DecSun1+35)=AnnéeCalendrier,MONTH(DecSun1+35)=12),DecSun1+35,\"\"))","v":"2019-12-29"}]
[null,null,{"$f":"IF(DAY(NovSun1)=1,IF(AND(YEAR(NovSun1+29)=AnnéeCalendrier,MONTH(NovSun1+29)=11),NovSun1+29,\"\"),IF(AND(YEAR(NovSun1+36)=AnnéeCalendrier,MONTH(NovSun1+36)=11),NovSun1+36,\"\"))","v":""},{"$f":"IF(DAY(NovSun1)=1,IF(AND(YEAR(NovSun1+30)=AnnéeCalendrier,MONTH(NovSun1+30)=11),NovSun1+30,\"\"),IF(AND(YEAR(NovSun1+37)=AnnéeCalendrier,MONTH(NovSun1+37)=11),NovSun1+37,\"\"))","v":""},{"$f":"IF(DAY(NovSun1)=1,IF(AND(YEAR(NovSun1+31)=AnnéeCalendrier,MONTH(NovSun1+31)=11),NovSun1+31,\"\"),IF(AND(YEAR(NovSun1+38)=AnnéeCalendrier,MONTH(NovSun1+38)=11),NovSun1+38,\"\"))","v":""},{"$f":"IF(DAY(NovSun1)=1,IF(AND(YEAR(NovSun1+32)=AnnéeCalendrier,MONTH(NovSun1+32)=11),NovSun1+32,\"\"),IF(AND(YEAR(NovSun1+39)=AnnéeCalendrier,MONTH(NovSun1+39)=11),NovSun1+39,\"\"))","v":""},{"$f":"IF(DAY(NovSun1)=1,IF(AND(YEAR(NovSun1+33)=AnnéeCalendrier,MONTH(NovSun1+33)=11),NovSun1+33,\"\"),IF(AND(YEAR(NovSun1+40)=AnnéeCalendrier,MONTH(NovSun1+40)=11),NovSun1+40,\"\"))","v":""},{"$f":"IF(DAY(NovSun1)=1,IF(AND(YEAR(NovSun1+34)=AnnéeCalendrier,MONTH(NovSun1+34)=11),NovSun1+34,\"\"),IF(AND(YEAR(NovSun1+41)=AnnéeCalendrier,MONTH(NovSun1+41)=11),NovSun1+41,\"\"))","v":""},{"$f":"IF(DAY(NovSun1)=1,IF(AND(YEAR(NovSun1+35)=AnnéeCalendrier,MONTH(NovSun1+35)=11),NovSun1+35,\"\"),IF(AND(YEAR(NovSun1+42)=AnnéeCalendrier,MONTH(NovSun1+42)=11),NovSun1+42,\"\"))","v":""},null,{"$f":"IF(DAY(DecSun1)=1,IF(AND(YEAR(DecSun1+29)=AnnéeCalendrier,MONTH(DecSun1+29)=12),DecSun1+29,\"\"),IF(AND(YEAR(DecSun1+36)=AnnéeCalendrier,MONTH(DecSun1+36)=12),DecSun1+36,\"\"))","v":"2019-12-30"},{"$f":"IF(DAY(DecSun1)=1,IF(AND(YEAR(DecSun1+30)=AnnéeCalendrier,MONTH(DecSun1+30)=12),DecSun1+30,\"\"),IF(AND(YEAR(DecSun1+37)=AnnéeCalendrier,MONTH(DecSun1+37)=12),DecSun1+37,\"\"))","v":"2019-12-31"},{"$f":"IF(DAY(DecSun1)=1,IF(AND(YEAR(DecSun1+31)=AnnéeCalendrier,MONTH(DecSun1+31)=12),DecSun1+31,\"\"),IF(AND(YEAR(DecSun1+38)=AnnéeCalendrier,MONTH(DecSun1+38)=12),DecSun1+38,\"\"))","v":""},{"$f":"IF(DAY(DecSun1)=1,IF(AND(YEAR(DecSun1+32)=AnnéeCalendrier,MONTH(DecSun1+32)=12),DecSun1+32,\"\"),IF(AND(YEAR(DecSun1+39)=AnnéeCalendrier,MONTH(DecSun1+39)=12),DecSun1+39,\"\"))","v":""},{"$f":"IF(DAY(DecSun1)=1,IF(AND(YEAR(DecSun1+33)=AnnéeCalendrier,MONTH(DecSun1+33)=12),DecSun1+33,\"\"),IF(AND(YEAR(DecSun1+40)=AnnéeCalendrier,MONTH(DecSun1+40)=12),DecSun1+40,\"\"))","v":""},{"$f":"IF(DAY(DecSun1)=1,IF(AND(YEAR(DecSun1+34)=AnnéeCalendrier,MONTH(DecSun1+34)=12),DecSun1+34,\"\"),IF(AND(YEAR(DecSun1+41)=AnnéeCalendrier,MONTH(DecSun1+41)=12),DecSun1+41,\"\"))","v":""},{"$f":"IF(DAY(DecSun1)=1,IF(AND(YEAR(DecSun1+35)=AnnéeCalendrier,MONTH(DecSun1+35)=12),DecSun1+35,\"\"),IF(AND(YEAR(DecSun1+42)=AnnéeCalendrier,MONTH(DecSun1+42)=12),DecSun1+42,\"\"))","v":""}]